Workbook

Sheet FT-R Transfers (Freq & Vol)
A1: FT-R Transfer Summary - Frequency
A2: Total | G2: Peace River (PR) | L2: Mainline (ML) | Q2: North & East (NE)
A3: Month | B3: Approved (Manual) | C3: Approved (ATP) | D3: Denied | E3: Cancelled | F3: Total | G3: Approved (Manual) | H3: Approved (ATP) | I3: Denied | J3: Cancelled | K3: Total | L3: Approved (Manual) | M3: Approved (ATP) | N3: Denied | O3: Cancelled | P3: Total | Q3: Approved (Manual) | R3: Approved (ATP) | S3: Denied | T3: Cancelled | U3: Total
A4: 2025-06-22 | B4: =ROUND(SUM(G4,L4,Q4),0) -> 762 | C4: =ROUND(SUM(H4,M4,R4),0) -> 1321 | D4: 65 | E4: 32 | F4: 2180 | G4: 499 | H4: 1102 | I4: 58 | J4: 29 | K4: =SUM(G4:J4) -> 1688 | L4: 200 | M4: 196 | N4: 7 | O4: 3 | P4: =SUM(L4:O4) -> 406 | Q4: 63 | R4: 23 | S4: 0 | T4: 0 | U4: =SUM(Q4:T4) -> 86
A5: 2025-07-22 | B5: =ROUND(SUM(G5,L5,Q5),0) -> 709 | C5: =ROUND(SUM(H5,M5,R5),0) -> 1189 | D5: =ROUND(SUM(I5,N5,S5),0) -> 85 | E5: =ROUND(SUM(J5,O5,T5),0) -> 36 | F5: =ROUND(SUM(K5,P5,U5),0) -> 2019 | G5: 502 | H5: 965 | I5: 78 | J5: 21 | K5: =SUM(G5:J5) -> 1566 | L5: 172 | M5: 159 | N5: 5 | O5: 15 | P5: =SUM(L5:O5) -> 351 | Q5: 35 | R5: 65 | S5: 2 | T5: 0 | U5: =SUM(Q5:T5) -> 102
A6: 2025-08-22 | B6: 670 | C6: 1160 | D6: 59 | E6: 36 | F6: 1925 | G6: 511 | H6: 937 | I6: 51 | J6: 36 | K6: 1535 | L6: 113 | M6: 190 | N6: 8 | O6: 0 | P6: 311 | Q6: 46 | R6: 33 | S6: 0 | T6: 0 | U6: 79
A7: 2025-09-22 | B7: =ROUND(SUM(G7,L7,Q7),0) -> 745 | C7: =ROUND(SUM(H7,M7,R7),0) -> 1039 | D7: =ROUND(SUM(I7,N7,S7),0) -> 50 | E7: =ROUND(SUM(J7,O7,T7),0) -> 33 | F7: =ROUND(SUM(K7,P7,U7),0) -> 1867 | G7: 473 | H7: 826 | I7: 44 | J7: 29 | K7: =SUM(G7:J7) -> 1372 | L7: 239 | M7: 164 | N7: 6 | O7: 4 | P7: =SUM(L7:O7) -> 413 | Q7: 33 | R7: 49 | S7: 0 | T7: 0 | U7: =SUM(Q7:T7) -> 82
A8: 2025-10-22 | B8: =ROUND(SUM(G8,L8,Q8),0) -> 754 | C8: =ROUND(SUM(H8,M8,R8),0) -> 1137 | D8: =ROUND(SUM(I8,N8,S8),0) -> 65 | E8: =ROUND(SUM(J8,O8,T8),0) -> 46 | F8: =ROUND(SUM(K8,P8,U8),0) -> 2002 | G8: 497 | H8: 943 | I8: 51 | J8: 43 | K8: =SUM(G8:J8) -> 1534 | L8: 217 | M8: 167 | N8: 11 | O8: 3 | P8: =SUM(L8:O8) -> 398 | Q8: 40 | R8: 27 | S8: 3 | T8: 0 | U8: =SUM(Q8:T8) -> 70
A9: 2025-11-22 | B9: =ROUND(SUM(G9,L9,Q9),0) -> 591 | C9: =ROUND(SUM(H9,M9,R9),0) -> 993 | D9: =ROUND(SUM(I9,N9,S9),0) -> 35 | E9: =ROUND(SUM(J9,O9,T9),0) -> 24 | F9: =ROUND(SUM(K9,P9,U9),0) -> 1643 | G9: 405 | H9: 792 | I9: 26 | J9: 14 | K9: =SUM(G9:J9) -> 1237 | L9: 138 | M9: 166 | N9: 9 | O9: 9 | P9: =SUM(L9:O9) -> 322 | Q9: 48 | R9: 35 | S9: 0 | T9: 1 | U9: =SUM(Q9:T9) -> 84
A10: 2025-12-22 | B10: =ROUND(SUM(G10,L10,Q10),0) -> 602 | C10: =ROUND(SUM(H10,M10,R10),0) -> 1421 | D10: =ROUND(SUM(I10,N10,S10),0) -> 97 | E10: =ROUND(SUM(J10,O10,T10),0) -> 33 | F10: =ROUND(SUM(K10,P10,U10),0) -> 2153 | G10: 432 | H10: 1173 | I10: 91 | J10: 25 | K10: =SUM(G10:J10) -> 1721 | L10: 137 | M10: 193 | N10: 2 | O10: 4 | P10: =SUM(L10:O10) -> 336 | Q10: 33 | R10: 55 | S10: 4 | T10: 4 | U10: =SUM(Q10:T10) -> 96
A11: 2026-01-22 | B11: =ROUND(SUM(G11,L11,Q11),0) -> 643 | C11: =ROUND(SUM(H11,M11,R11),0) -> 1426 | D11: =ROUND(SUM(I11,N11,S11),0) -> 54 | E11: =ROUND(SUM(J11,O11,T11),0) -> 29 | F11: =ROUND(SUM(K11,P11,U11),0) -> 2152 | G11: 423 | H11: 1193 | I11: 51 | J11: 29 | K11: =SUM(G11:J11) -> 1696 | L11: 162 | M11: 185 | N11: 2 | O11: 0 | P11: =SUM(L11:O11) -> 349 | Q11: 58 | R11: 48 | S11: 1 | T11: 0 | U11: =SUM(Q11:T11) -> 107
A12: 2026-02-22 | B12: =ROUND(SUM(G12,L12,Q12),0) -> 565 | C12: =ROUND(SUM(H12,M12,R12),0) -> 1135 | D12: =ROUND(SUM(I12,N12,S12),0) -> 47 | E12: =ROUND(SUM(J12,O12,T12),0) -> 31 | F12: =ROUND(SUM(K12,P12,U12),0) -> 1778 | G12: 342 | H12: 921 | I12: 44 | J12: 24 | K12: =SUM(G12:J12) -> 1331 | L12: 194 | M12: 178 | N12: 1 | O12: 7 | P12: =SUM(L12:O12) -> 380 | Q12: 29 | R12: 36 | S12: 2 | T12: 0 | U12: =SUM(Q12:T12) -> 67
A13: 2026-03-22 | B13: =ROUND(SUM(G13,L13,Q13),0) -> 685 | C13: =ROUND(SUM(H13,M13,R13),0) -> 1380 | D13: =ROUND(SUM(I13,N13,S13),0) -> 128 | E13: =ROUND(SUM(J13,O13,T13),0) -> 64 | F13: =ROUND(SUM(K13,P13,U13),0) -> 2257 | G13: 592 | H13: 1126 | I13: 126 | J13: 53 | K13: =SUM(G13:J13) -> 1897 | L13: 73 | M13: 195 | N13: 1 | O13: 3 | P13: =SUM(L13:O13) -> 272 | Q13: 20 | R13: 59 | S13: 1 | T13: 8 | U13: =SUM(Q13:T13) -> 88
A14: 2026-04-22 | B14: =ROUND(SUM(G14,L14,Q14),0) -> 601 | C14: =ROUND(SUM(H14,M14,R14),0) -> 1385 | D14: =ROUND(SUM(I14,N14,S14),0) -> 62 | E14: =ROUND(SUM(J14,O14,T14),0) -> 36 | F14: =ROUND(SUM(K14,P14,U14),0) -> 2084 | G14: 445 | H14: 1108 | I14: 61 | J14: 36 | K14: =SUM(G14:J14) -> 1650 | L14: 128 | M14: 231 | N14: 1 | O14: 0 | P14: =SUM(L14:O14) -> 360 | Q14: 28 | R14: 46 | S14: 0 | T14: 0 | U14: =SUM(Q14:T14) -> 74
A15: 2026-05-22 | B15: =ROUND(SUM(G15,L15,Q15),0) -> 727 | C15: =ROUND(SUM(H15,M15,R15),0) -> 1173 | D15: =ROUND(SUM(I15,N15,S15),0) -> 90 | E15: =ROUND(SUM(J15,O15,T15),0) -> 30 | F15: =ROUND(SUM(K15,P15,U15),0) -> 2020 | G15: 574 | H15: 956 | I15: 89 | J15: 28 | K15: =SUM(G15:J15) -> 1647 | L15: 106 | M15: 192 | N15: 0 | O15: 2 | P15: =SUM(L15:O15) -> 300 | Q15: 47 | R15: 25 | S15: 1 | T15: 0 | U15: =SUM(Q15:T15) -> 73
A16: 2026-06-22 | B16: 847 | C16: 1215 | D16: 67 | E16: 47 | F16: 2176 | G16: 645 | H16: 1007 | I16: 66 | J16: 44 | K16: 1762 | L16: 159 | M16: 171 | N16: 1 | O16: 3 | P16: 334 | Q16: 43 | R16: 37 | S16: 0 | T16: 0 | U16: 80
A18: FT-R Transfer Summary - Volume (103m3/d)
A19: Total | G19: Peace River (PR) | L19: Mainline (ML) | Q19: North & East (NE)
A20: Month | B20: Approved (Manual) | C20: Approved (ATP) | D20: Denied | E20: Cancelled | F20: Total | G20: Approved (Manual) | H20: Approved (ATP) | I20: Denied | J20: Cancelled | K20: Total | L20: Approved (Manual) | M20: Approved (ATP) | N20: Denied | O20: Cancelled | P20: Total | Q20: Approved (Manual) | R20: Approved (ATP) | S20: Denied | T20: Cancelled | U20: Total
A21: 2025-06-22 | B21: =SUM(ROUND(G21,0),ROUND(L21,0),ROUND(Q21,0)) -> 148214 | C21: =SUM(ROUND(H21,0),ROUND(M21,0),ROUND(R21,0)) -> 235078 | D21: 21482 | E21: =SUM(ROUND(J21,0),ROUND(O21,0),ROUND(T21,0)) -> 15839 | F21: =SUM(B21:E21) -> 420613 | G21: 145424.9 | H21: 229435.5 | I21: 21156.8 | J21: 15830 | K21: =SUM(G21:J21) -> 411847.2 | L21: 2558.1 | M21: 5405.2 | N21: 325 | O21: 9 | P21: =SUM(L21:O21) -> 8297.3 | Q21: 230.5 | R21: 237.4 | S21: 0 | T21: 0 | U21: =SUM(Q21:T21) -> 467.9
A22: 2025-07-22 | B22: 198146 | C22: =SUM(ROUND(H22,0),ROUND(M22,0),ROUND(R22,0)) -> 203584 | D22: =SUM(ROUND(I22,0),ROUND(N22,0),ROUND(S22,0)) -> 20293 | E22: =SUM(ROUND(J22,0),ROUND(O22,0),ROUND(T22,0)) -> 7264 | F22: =SUM(B22:E22) -> 429287 | G22: 192297.6 | H22: 198284 | I22: 19665.2 | J22: 7218.6 | K22: =SUM(G22:J22) -> 417465.4 | L22: 5622.8 | M22: 4793.4 | N22: 609.9 | O22: 45 | P22: =SUM(L22:O22) -> 11071.1 | Q22: 224.9 | R22: 507.3 | S22: 17.5 | T22: 0 | U22: =SUM(Q22:T22) -> 749.7
A23: 2025-08-22 | B23: 161511 | C23: 177911 | D23: 8578 | E23: 8027 | F23: 356027 | G23: 157745.3 | H23: 172212 | I23: 8027.7 | J23: 8027 | K23: 346012 | L23: 3475.4 | M23: 5247.9 | N23: 549.8 | O23: 0 | P23: 9273.1 | Q23: 291 | R23: 451.2 | S23: 0 | T23: 0 | U23: 742.2
A24: 2025-09-22 | B24: 101825 | C24: =SUM(ROUND(H24,0),ROUND(M24,0),ROUND(R24,0)) -> 177383 | D24: =SUM(ROUND(I24,0),ROUND(N24,0),ROUND(S24,0)) -> 8505 | E24: =SUM(ROUND(J24,0),ROUND(O24,0),ROUND(T24,0)) -> 10835 | F24: =SUM(B24:E24) -> 298548 | G24: 95467.7 | H24: 172324.1 | I24: 8027.7 | J24: 10192.9 | K24: =SUM(G24:J24) -> 286012.4 | L24: 6125.4 | M24: 4525.3 | N24: 477 | O24: 642 | P24: =SUM(L24:O24) -> 11769.7 | Q24: 232.3 | R24: 534 | S24: 0 | T24: 0 | U24: =SUM(Q24:T24) -> 766.3
A25: 2025-10-22 | B25: 160954 | C25: =SUM(ROUND(H25,0),ROUND(M25,0),ROUND(R25,0)) -> 177013 | D25: =SUM(ROUND(I25,0),ROUND(N25,0),ROUND(S25,0)) -> 19485 | E25: =SUM(ROUND(J25,0),ROUND(O25,0),ROUND(T25,0)) -> 12343 | F25: =SUM(B25:E25) -> 369795 | G25: 155847 | H25: 172329 | I25: 18942 | J25: 12075 | K25: =SUM(G25:J25) -> 359193 | L25: 4910 | M25: 4295 | N25: 524 | O25: 268 | P25: =SUM(L25:O25) -> 9997 | Q25: 197 | R25: 389 | S25: 19 | T25: 0 | U25: =SUM(Q25:T25) -> 605
A26: 2025-11-22 | B26: =SUM(ROUND(G26,0),ROUND(L26,0),ROUND(Q26,0)) -> 95102 | C26: =SUM(ROUND(H26,0),ROUND(M26,0),ROUND(R26,0)) -> 146831 | D26: =SUM(ROUND(I26,0),ROUND(N26,0),ROUND(S26,0)) -> 5355 | E26: =SUM(ROUND(J26,0),ROUND(O26,0),ROUND(T26,0)) -> 1895 | F26: =SUM(B26:E26) -> 249183 | G26: 91055 | H26: 142475 | I26: 5214 | J26: 1657 | K26: =SUM(G26:J26) -> 240401 | L26: 3545 | M26: 4112 | N26: 141 | O26: 217 | P26: =SUM(L26:O26) -> 8015 | Q26: 502 | R26: 244 | S26: 0 | T26: 21 | U26: =SUM(Q26:T26) -> 767
A27: 2025-12-22 | B27: =SUM(ROUND(G27,0),ROUND(L27,0),ROUND(Q27,0)) -> 131437 | C27: =SUM(ROUND(H27,0),ROUND(M27,0),ROUND(R27,0)) -> 210399 | D27: =SUM(ROUND(I27,0),ROUND(N27,0),ROUND(S27,0)) -> 5374 | E27: =SUM(ROUND(J27,0),ROUND(O27,0),ROUND(T27,0)) -> 7121 | F27: =SUM(B27:E27) -> 354331 | G27: 127855 | H27: 204458 | I27: 5187.9 | J27: 6916.7 | K27: =SUM(G27:J27) -> 344417.6 | L27: 3392.5 | M27: 5308.6 | N27: 151 | O27: 135 | P27: =SUM(L27:O27) -> 8987.1 | Q27: 189.4 | R27: 631.9 | S27: 35 | T27: 69 | U27: =SUM(Q27:T27) -> 925.3
A28: 2026-01-22 | B28: =SUM(ROUND(G28,0),ROUND(L28,0),ROUND(Q28,0)) -> 115590 | C28: =SUM(ROUND(H28,0),ROUND(M28,0),ROUND(R28,0)) -> 243318 | D28: =SUM(ROUND(I28,0),ROUND(N28,0),ROUND(S28,0)) -> 8545 | E28: =SUM(ROUND(J28,0),ROUND(O28,0),ROUND(T28,0)) -> 4881 | F28: =SUM(B28:E28) -> 372334 | G28: 111778.7 | H28: 237994.8 | I28: 8267 | J28: 4880.5 | K28: =SUM(G28:J28) -> 362921 | L28: 3509 | M28: 4706 | N28: 200 | O28: 0 | P28: =SUM(L28:O28) -> 8415 | Q28: 301.8 | R28: 617 | S28: 77.6 | T28: 0 | U28: =SUM(Q28:T28) -> 996.4
A29: 2026-02-22 | B29: =SUM(ROUND(G29,0),ROUND(L29,0),ROUND(Q29,0)) -> 103260 | C29: =SUM(ROUND(H29,0),ROUND(M29,0),ROUND(R29,0)) -> 172267 | D29: =SUM(ROUND(I29,0),ROUND(N29,0),ROUND(S29,0)) -> 5494 | E29: =SUM(ROUND(J29,0),ROUND(O29,0),ROUND(T29,0)) -> 3962 | F29: =SUM(B29:E29) -> 284983 | G29: 97700 | H29: 166777 | I29: 5430 | J29: 3836 | K29: =SUM(G29:J29) -> 273743 | L29: 5370 | M29: 4961 | N29: 52 | O29: 126 | P29: =SUM(L29:O29) -> 10509 | Q29: 190 | R29: 529 | S29: 12 | T29: 0 | U29: =SUM(Q29:T29) -> 731
A30: 2026-03-22 | B30: =SUM(ROUND(G30,0),ROUND(L30,0),ROUND(Q30,0)) -> 165401 | C30: =SUM(ROUND(H30,0),ROUND(M30,0),ROUND(R30,0)) -> 244483 | D30: =SUM(ROUND(I30,0),ROUND(N30,0),ROUND(S30,0)) -> 19391 | E30: =SUM(ROUND(J30,0),ROUND(O30,0),ROUND(T30,0)) -> 28917 | F30: =SUM(B30:E30) -> 458192 | G30: 163074 | H30: 238862 | I30: 19315 | J30: 28776 | K30: =SUM(G30:J30) -> 450027 | L30: 2040.8 | M30: 4985 | N30: 72 | O30: 82 | P30: =SUM(L30:O30) -> 7179.8 | Q30: 286 | R30: 636 | S30: 4 | T30: 59 | U30: =SUM(Q30:T30) -> 985
A31: 2026-04-22 | B31: =SUM(ROUND(G31,0),ROUND(L31,0),ROUND(Q31,0)) -> 150520 | C31: =SUM(ROUND(H31,0),ROUND(M31,0),ROUND(R31,0)) -> 297089 | D31: =SUM(ROUND(I31,0),ROUND(N31,0),ROUND(S31,0)) -> 11157 | E31: =SUM(ROUND(J31,0),ROUND(O31,0),ROUND(T31,0)) -> 20931 | F31: =SUM(B31:E31) -> 479697 | G31: 144566 | H31: 291564 | I31: 11107 | J31: 20931 | K31: =SUM(G31:J31) -> 468168 | L31: 5716 | M31: 5107 | N31: 50 | O31: 0 | P31: =SUM(L31:O31) -> 10873 | Q31: 238 | R31: 418 | S31: 0 | T31: 0 | U31: =SUM(Q31:T31) -> 656
A32: 2026-05-22 | B32: =SUM(ROUND(G32,0),ROUND(L32,0),ROUND(Q32,0)) -> 177537 | C32: =SUM(ROUND(H32,0),ROUND(M32,0),ROUND(R32,0)) -> 252933 | D32: =SUM(ROUND(I32,0),ROUND(N32,0),ROUND(S32,0)) -> 28508 | E32: =SUM(ROUND(J32,0),ROUND(O32,0),ROUND(T32,0)) -> 12726 | F32: =SUM(B32:E32) -> 471704 | G32: 174170.2 | H32: 247641 | I32: 28506.4 | J32: 12723.2 | K32: =SUM(G32:J32) -> 463040.8 | L32: 3079.2 | M32: 5072.7 | N32: 0 | O32: 2.9 | P32: =SUM(L32:O32) -> 8154.8 | Q32: 287.9 | R32: 219.4 | S32: 2.2 | T32: 0 | U32: =SUM(Q32:T32) -> 509.5
A33: 2026-06-22 | B33: 242012 | C33: =SUM(ROUND(H33,0),ROUND(M33,0),ROUND(R33,0)) -> 273775 | D33: 26631 | E33: 17327 | F33: 559745 | G33: 238371.8 | H33: 269066.3 | I33: 26575.6 | J33: 17222.6 | K33: 551236.3 | L33: 3468.6 | M33: 4438 | N33: 55 | O33: 104 | P33: 8065.6 | Q33: 171.1 | R33: 271.4 | S33: 0 | T33: 0 | U33: 442.5
A35: Cross Boundary Transfers
A36: Month | B36: Frequency | C36: Volume (e3m3/d) | D36: Information
A37: 2024-01-01 | B37: 1 | C37: 50 | D37: Requested out and back FT-R transfer volume from PR to ML was cancelled
A38: 2024-02-01 | B38: 1 | C38: 50 | D38: Requested out and back FT-R transfer volume from PR to ML was cancelled
A39: 2024-03-01 | B39: 1 | C39: 50 | D39: Requested out and back FT-R transfer volume from PR to ML was cancelled
A40: 2025-06-01 | B40: 1 | C40: 40.5 | D40: Requested out and back FT-R transfer volume from PR to ML was approved
A41: 2025-07-01 | B41: N/A | C41: N/A | D41: N/A
A42: 2025-08-01 | B42: 2 | C42: 5.5 | D42: Requested one-way FT-R transfer volume from ML to NE was approved
A43: 2025-09-01 | B43: 1 | C43: 35 | D43: Requested one-way FT-R transfer volume from PR to ML was approved
A44: 2025-10-01 | B44: 8 | C44: 156.4 | D44: Requested one-way FT-R transfer volumes from PR to ML and NE were approved
A45: 2025-11-01 | B45: N/A | C45: N/A | D45: N/A
A46: 2025-12-01 | B46: 1 | C46: 15 | D46: Requested one-way FT-R transfer volume from ML to NE was denied
A47: 2026-01-22 | B47: 1 | C47: 5 | D47: Requested one-way FT-R transfer volume from PR to ML was approved
A48: 2026-02-22 | B48: N/A | C48: N/A | D48: N/A
A49: 2026-03-22 | B49: 1 | C49: 10 | D49: Requested one-way FT-R transfer volume from PR to ML was approved
A50: 2026-04-22 | B50: N/A | C50: N/A | D50: N/A
A51: 2026-05-22 | B51: N/A | C51: N/A | D51: N/A
A52: 2026-06-01 | B52: N/A | C52: N/A | D52: N/A
A54: Notes:
A55: 1. Values represent the number of transfer requests processed in the specified month, regardless of effective date
A56: 2. Includes all "out and back" and "one-way" transfers
A57: 3. Out and back transfer requests are tallied as a single transaction
A58: 4. Transfers to storage are not included in totals
A59: 5. Transfers that cross a Delivery Design Area boundary are tallied in the area where the "To" location is situated
A60: 6. Cancelled transfer requests are initiated by the requester (customer, marketer etc.)
A61: 7. ATP is the acronym for Automated Transfer Process, requests that meet certain criteria may be approved automatically
A62: 8. Delivery Design Area boundaries are illustrated in the Design Methodology document on Customer Express (see NGTL/Regulatory/Facilities)
A63: http://www.tccustomerexpress.com/docs/ab_regulatory_facilities/Facilities%20Design%20Methodology%20Document%20-%20Revision%20May%2031,%202018_Oct%204.pdf

Sheet FT-D Transfers (Frequency)
A1: FT-D Transfer Summary - Frequency
A2: Total | F2: NW Alberta and NE BC | J2: NE Alberta | N2: Edmonton and Area | R2: SW Alberta | V2: SE Alberta
A3: Month | B3: Approved | C3: Denied | D3: Cancelled | E3: Total | F3: Approved | G3: Denied | H3: Cancelled | I3: Total | J3: Approved | K3: Denied | L3: Cancelled | M3: Total | N3: Approved | O3: Denied | P3: Cancelled | Q3: Total | R3: Approved | S3: Denied | T3: Cancelled | U3: Total | V3: Approved | W3: Denied | X3: Cancelled | Y3: Total
A4: 2025-06-22 | B4: =SUM(F4,J4,N4,R4,V4) -> 270 | C4: =SUM(G4,K4,O4,S4,W4) -> 0 | D4: =SUM(H4,L4,P4,T4,X4) -> 10 | E4: =SUM(B4:D4) -> 280 | F4: =SUM(F21,F38,F55,F81) -> 0 | G4: 0 | H4: 0 | I4: =SUM(F4:H4) -> 0 | J4: =SUM(J21,J38,J55,J81) -> 3 | K4: 0 | L4: 5 | M4: =SUM(J4:L4) -> 8 | N4: =SUM(N21,N38,N55,N81) -> 20 | O4: 0 | P4: 2 | Q4: =SUM(N4:P4) -> 22 | R4: =SUM(R21,R38,R55,R81) -> 0 | S4: 0 | T4: 0 | U4: =SUM(R4:T4) -> 0 | V4: =SUM(V21,V38,V55,V81,B98,C98,I98,J98) -> 247 | W4: =SUM(W21,W38,W55,W81,D98,K98) -> 0 | X4: =SUM(X21,X38,X55,X81,E98,L98) -> 3 | Y4: =SUM(V4:X4) -> 250
A5: 2025-07-22 | B5: =SUM(F5,J5,N5,R5,V5) -> 205 | C5: 0 | D5: =SUM(H5,L5,P5,T5,X5) -> 4 | E5: 209 | F5: 0 | G5: 0 | H5: 0 | I5: =SUM(F5:H5) -> 0 | J5: 1 | K5: 0 | L5: 0 | M5: =SUM(J5:L5) -> 1 | N5: 1 | O5: 0 | P5: 0 | Q5: =SUM(N5:P5) -> 1 | R5: 0 | S5: 0 | T5: 0 | U5: =SUM(R5:T5) -> 0 | V5: 203 | W5: 0 | X5: 4 | Y5: =SUM(V5:X5) -> 207
A6: 2025-08-22 | B6: 140 | C6: 0 | D6: 1 | E6: 141 | F6: 0 | G6: 0 | H6: 0 | I6: 0 | J6: 2 | K6: 0 | L6: 0 | M6: 2 | N6: 0 | O6: 0 | P6: 0 | Q6: 0 | R6: 3 | S6: 0 | T6: 1 | U6: 4 | V6: 135 | W6: 0 | X6: 0 | Y6: 135
A7: 2025-09-22 | B7: 104 | C7: 0 | D7: 8 | E7: 112 | F7: 0 | G7: 0 | H7: 0 | I7: 0 | J7: 8 | K7: 0 | L7: 0 | M7: 8 | N7: 7 | O7: 0 | P7: 3 | Q7: 10 | R7: 0 | S7: 0 | T7: 0 | U7: 0 | V7: 89 | W7: 0 | X7: 5 | Y7: 94
A8: 2025-10-22 | B8: 116 | C8: 21 | D8: 7 | E8: 144 | F8: 0 | G8: 0 | H8: 0 | I8: 0 | J8: 10 | K8: 19 | L8: 5 | M8: 34 | N8: 3 | O8: 0 | P8: 0 | Q8: 3 | R8: 3 | S8: 2 | T8: 1 | U8: 6 | V8: 100 | W8: 0 | X8: 1 | Y8: 101
A9: 2025-11-22 | B9: 115 | C9: 2 | D9: 2 | E9: 119 | F9: 0 | G9: 0 | H9: 0 | I9: 0 | J9: 2 | K9: 0 | L9: 0 | M9: 2 | N9: 1 | O9: 0 | P9: 0 | Q9: 1 | R9: 3 | S9: 1 | T9: 1 | U9: 5 | V9: 109 | W9: 1 | X9: 1 | Y9: 111
A10: 2025-12-22 | B10: 157 | C10: 23 | D10: 11 | E10: 191 | F10: 0 | G10: 1 | H10: 0 | I10: 1 | J10: 52 | K10: 22 | L10: 8 | M10: 82 | N10: 6 | O10: 0 | P10: 1 | Q10: 7 | R10: 6 | S10: 0 | T10: 1 | U10: 7 | V10: 93 | W10: 0 | X10: 1 | Y10: 94
A11: 2026-01-22 | B11: 138 | C11: 0 | D11: 3 | E11: 141 | F11: 2 | G11: 0 | H11: 0 | I11: 2 | J11: 6 | K11: 0 | L11: 1 | M11: 7 | N11: 0 | O11: 0 | P11: 0 | Q11: 0 | R11: 7 | S11: 0 | T11: 0 | U11: 7 | V11: 123 | W11: 0 | X11: 2 | Y11: 125
A12: 2026-02-22 | B12: 128 | C12: 5 | D12: 2 | E12: 135 | F12: 4 | G12: 0 | H12: 0 | I12: 4 | J12: 25 | K12: 5 | L12: 2 | M12: 32 | N12: 1 | O12: 0 | P12: 0 | Q12: 1 | R12: 8 | S12: 0 | T12: 0 | U12: 8 | V12: 90 | W12: 0 | X12: 0 | Y12: 90
A13: 2026-03-22 | B13: 115 | C13: 0 | D13: 1 | E13: 116 | F13: 0 | G13: 0 | H13: 0 | I13: 0 | J13: 15 | K13: 0 | L13: 1 | M13: 16 | N13: 2 | O13: 0 | P13: 0 | Q13: 2 | R13: 0 | S13: 0 | T13: 0 | U13: 0 | V13: 98 | W13: 0 | X13: 0 | Y13: 98
A14: 2026-04-22 | B14: 100 | C14: 0 | D14: 0 | E14: 100 | F14: 0 | G14: 0 | H14: 0 | I14: 0 | J14: 11 | K14: 0 | L14: 0 | M14: 11 | N14: 1 | O14: 0 | P14: 0 | Q14: 1 | R14: 6 | S14: 0 | T14: 0 | U14: 6 | V14: 82 | W14: 0 | X14: 0 | Y14: 82
A15: 2026-05-22 | B15: 89 | C15: 1 | D15: 0 | E15: 90 | F15: 0 | G15: 0 | H15: 0 | I15: 0 | J15: 10 | K15: 0 | L15: 0 | M15: 10 | N15: 1 | O15: 0 | P15: 0 | Q15: 1 | R15: 2 | S15: 0 | T15: 0 | U15: 2 | V15: 76 | W15: 1 | X15: 0 | Y15: 77
A16: 2026-06-22 | B16: 99 | C16: 0 | D16: 4 | E16: 103 | F16: 1 | G16: 0 | H16: 0 | I16: =SUM(F16:H16) -> 1 | J16: 20 | K16: 0 | L16: 4 | M16: =SUM(J16:L16) -> 24 | N16: 2 | O16: 0 | P16: 0 | Q16: =SUM(N16:P16) -> 2 | R16: 3 | S16: 0 | T16: 0 | U16: =SUM(R16:T16) -> 3 | V16: 73 | W16: 0 | X16: 0 | Y16: =SUM(V16:X16) -> 73
A18: FT-D2 to FT-D2 Transfer Summary
A19: Total | F19: NW Alberta and NE BC | J19: NE Alberta | N19: Edmonton and Area | R19: SW Alberta | V19: SE Alberta
A20: Month | B20: Approved | C20: Denied | D20: Cancelled | E20: Total | F20: Approved | G20: Denied | H20: Cancelled | I20: Total | J20: Approved | K20: Denied | L20: Cancelled | M20: Total | N20: Approved | O20: Denied | P20: Cancelled | Q20: Total | R20: Approved | S20: Denied | T20: Cancelled | U20: Total | V20: Approved | W20: Denied | X20: Cancelled | Y20: Total
A21: 2025-06-22 | B21: =SUM(F21,J21,N21,R21,V21) -> 36 | C21: =SUM(G21,K21,O21,S21,W21) -> 0 | D21: =SUM(H21,L21,P21,T21,X21) -> 7 | E21: =SUM(B21:D21) -> 43 | F21: 0 | G21: 0 | H21: 0 | I21: =SUM(F21:H21) -> 0 | J21: 3 | K21: 0 | L21: 5 | M21: =SUM(J21:L21) -> 8 | N21: 20 | O21: 0 | P21: 2 | Q21: =SUM(N21:P21) -> 22 | R21: 0 | S21: 0 | T21: 0 | U21: =SUM(R21:T21) -> 0 | V21: 13 | W21: 0 | X21: 0 | Y21: =SUM(V21:X21) -> 13
A22: 2025-07-22 | B22: =SUM(F22,J22,N22,R22,V22) -> 9 | C22: =SUM(G22,K22,O22,S22,W22) -> 0 | D22: =SUM(H22,L22,P22,T22,X22) -> 0 | E22: =SUM(B22:D22) -> 9 | F22: 0 | G22: 0 | H22: 0 | I22: =SUM(F22:H22) -> 0 | J22: 1 | K22: 0 | L22: 0 | M22: =SUM(J22:L22) -> 1 | N22: 1 | O22: 0 | P22: 0 | Q22: =SUM(N22:P22) -> 1 | R22: 0 | S22: 0 | T22: 0 | U22: =SUM(R22:T22) -> 0 | V22: 7 | W22: 0 | X22: 0 | Y22: =SUM(V22:X22) -> 7
A23: 2025-08-22 | B23: =SUM(F23,J23,N23,R23,V23) -> 5 | C23: =SUM(G23,K23,O23,S23,W23) -> 0 | D23: =SUM(H23,L23,P23,T23,X23) -> 0 | E23: =SUM(B23:D23) -> 5 | F23: 0 | G23: 0 | H23: 0 | I23: =SUM(F23:H23) -> 0 | J23: 2 | K23: 0 | L23: 0 | M23: =SUM(J23:L23) -> 2 | N23: 0 | O23: 0 | P23: 0 | Q23: =SUM(N23:P23) -> 0 | R23: 0 | S23: 0 | T23: 0 | U23: =SUM(R23:T23) -> 0 | V23: 3 | W23: 0 | X23: 0 | Y23: =SUM(V23:X23) -> 3
A24: 2025-09-22 | B24: 24 | C24: =SUM(G24,K24,O24,S24,W24) -> 0 | D24: =SUM(H24,L24,P24,T24,X24) -> 8 | E24: =SUM(B24:D24) -> 32 | F24: 0 | G24: 0 | H24: 0 | I24: =SUM(F24:H24) -> 0 | J24: 8 | K24: 0 | L24: 0 | M24: =SUM(J24:L24) -> 8 | N24: 7 | O24: 0 | P24: 3 | Q24: =SUM(N24:P24) -> 10 | R24: 0 | S24: 0 | T24: 0 | U24: =SUM(R24:T24) -> 0 | V24: 9 | W24: 0 | X24: 5 | Y24: =SUM(V24:X24) -> 14
A25: 2025-10-22 | B25: 17 | C25: 19 | D25: =SUM(H25,L25,P25,T25,X25) -> 6 | E25: =SUM(B25:D25) -> 42 | F25: 0 | G25: 0 | H25: 0 | I25: =SUM(F25:H25) -> 0 | J25: 10 | K25: 19 | L25: 5 | M25: =SUM(J25:L25) -> 34 | N25: 3 | O25: 0 | P25: 0 | Q25: =SUM(N25:P25) -> 3 | R25: 0 | S25: 0 | T25: 0 | U25: =SUM(R25:T25) -> 0 | V25: 4 | W25: 0 | X25: 1 | Y25: =SUM(V25:X25) -> 5
A26: 2025-11-22 | B26: 8 | C26: 1 | D26: =SUM(H26,L26,P26,T26,X26) -> 2 | E26: =SUM(B26:D26) -> 11 | F26: 0 | G26: 0 | H26: 0 | I26: =SUM(F26:H26) -> 0 | J26: 2 | K26: 0 | L26: 0 | M26: =SUM(J26:L26) -> 2 | N26: 1 | O26: 0 | P26: 0 | Q26: =SUM(N26:P26) -> 1 | R26: 0 | S26: 0 | T26: 1 | U26: =SUM(R26:T26) -> 1 | V26: 5 | W26: 1 | X26: 1 | Y26: =SUM(V26:X26) -> 7
A27: 2025-12-22 | B27: 63 | C27: 23 | D27: =SUM(H27,L27,P27,T27,X27) -> 11 | E27: =SUM(B27:D27) -> 97 | F27: 0 | G27: 1 | H27: 0 | I27: =SUM(F27:H27) -> 1 | J27: 52 | K27: 22 | L27: 8 | M27: =SUM(J27:L27) -> 82 | N27: 6 | O27: 0 | P27: 1 | Q27: =SUM(N27:P27) -> 7 | R27: 1 | S27: 0 | T27: 1 | U27: =SUM(R27:T27) -> 2 | V27: 4 | W27: 0 | X27: 1 | Y27: =SUM(V27:X27) -> 5
A28: 2026-01-22 | B28: 11 | C28: 0 | D28: =SUM(H28,L28,P28,T28,X28) -> 1 | E28: =SUM(B28:D28) -> 12 | F28: 2 | G28: 0 | H28: 0 | I28: =SUM(F28:H28) -> 2 | J28: 6 | K28: 0 | L28: 1 | M28: =SUM(J28:L28) -> 7 | N28: 0 | O28: 0 | P28: 0 | Q28: =SUM(N28:P28) -> 0 | R28: 0 | S28: 0 | T28: 0 | U28: =SUM(R28:T28) -> 0 | V28: 3 | W28: 0 | X28: 0 | Y28: =SUM(V28:X28) -> 3
A29: 2026-02-22 | B29: =SUM(F29,J29,N29,R29,V29) -> 33 | C29: 5 | D29: =SUM(H29,L29,P29,T29,X29) -> 2 | E29: =SUM(B29:D29) -> 40 | F29: 3 | G29: 0 | H29: 0 | I29: =SUM(F29:H29) -> 3 | J29: 25 | K29: 5 | L29: 2 | M29: =SUM(J29:L29) -> 32 | N29: 1 | O29: 0 | P29: 0 | Q29: =SUM(N29:P29) -> 1 | R29: 2 | S29: 0 | T29: 0 | U29: =SUM(R29:T29) -> 2 | V29: 2 | W29: 0 | X29: 0 | Y29: =SUM(V29:X29) -> 2
A30: 2026-03-22 | B30: =SUM(F30,J30,N30,R30,V30) -> 24 | C30: =SUM(G30,K30,O30,S30,W30) -> 0 | D30: =SUM(H30,L30,P30,T30,X30) -> 1 | E30: =SUM(B30:D30) -> 25 | F30: 0 | G30: 0 | H30: 0 | I30: =SUM(F30:H30) -> 0 | J30: 15 | K30: 0 | L30: 1 | M30: =SUM(J30:L30) -> 16 | N30: 2 | O30: 0 | P30: 0 | Q30: =SUM(N30:P30) -> 2 | R30: 0 | S30: 0 | T30: 0 | U30: =SUM(R30:T30) -> 0 | V30: 7 | W30: 0 | X30: 0 | Y30: =SUM(V30:X30) -> 7
A31: 2026-04-22 | B31: =SUM(F31,J31,N31,R31,V31) -> 15 | C31: =SUM(G31,K31,O31,S31,W31) -> 0 | D31: =SUM(H31,L31,P31,T31,X31) -> 0 | E31: =SUM(B31:D31) -> 15 | F31: 0 | G31: 0 | H31: 0 | I31: =SUM(F31:H31) -> 0 | J31: 11 | K31: 0 | L31: 0 | M31: =SUM(J31:L31) -> 11 | N31: 1 | O31: 0 | P31: 0 | Q31: =SUM(N31:P31) -> 1 | R31: 0 | S31: 0 | T31: 0 | U31: =SUM(R31:T31) -> 0 | V31: 3 | W31: 0 | X31: 0 | Y31: =SUM(V31:X31) -> 3
A32: 2026-05-22 | B32: =SUM(F32,J32,N32,R32,V32) -> 14 | C32: =SUM(G32,K32,O32,S32,W32) -> 0 | D32: =SUM(H32,L32,P32,T32,X32) -> 0 | E32: =SUM(B32:D32) -> 14 | F32: 0 | G32: 0 | H32: 0 | I32: =SUM(F32:H32) -> 0 | J32: 10 | K32: 0 | L32: 0 | M32: =SUM(J32:L32) -> 10 | N32: 1 | O32: 0 | P32: 0 | Q32: =SUM(N32:P32) -> 1 | R32: 0 | S32: 0 | T32: 0 | U32: =SUM(R32:T32) -> 0 | V32: 3 | W32: 0 | X32: 0 | Y32: =SUM(V32:X32) -> 3
A33: 2026-06-22 | B33: 25 | C33: 0 | D33: 4 | E33: 29 | F33: 1 | G33: 0 | H33: 0 | I33: 1 | J33: 20 | K33: 0 | L33: 4 | M33: 24 | N33: 2 | O33: 0 | P33: 0 | Q33: 2 | R33: 0 | S33: 0 | T33: 0 | U33: 0 | V33: 2 | W33: 0 | X33: 0 | Y33: 2
A35: FT-D3 to FT-D3 Transfer Summary
A36: Total | F36: NW Alberta and NE BC | J36: NE Alberta | N36: Edmonton and Area | R36: SW Alberta | V36: SE Alberta
A37: Month | B37: Approved | C37: Denied | D37: Cancelled | E37: Total | F37: Approved | G37: Denied | H37: Cancelled | I37: Total | J37: Approved | K37: Denied | L37: Cancelled | M37: Total | N37: Approved | O37: Denied | P37: Cancelled | Q37: Total | R37: Approved | S37: Denied | T37: Cancelled | U37: Total | V37: Approved | W37: Denied | X37: Cancelled | Y37: Total
A38: 2025-06-22 | B38: =SUM(F38,J38,N38,R38,V38) -> 0 | C38: =SUM(G38,K38,O38,S38,W38) -> 0 | D38: =SUM(H38,L38,P38,T38,X38) -> 0 | E38: =SUM(B38:D38) -> 0 | F38: 0 | G38: 0 | H38: 0 | I38: =SUM(F38:H38) -> 0 | J38: 0 | K38: 0 | L38: 0 | M38: =SUM(J38:L38) -> 0 | N38: 0 | O38: 0 | P38: 0 | Q38: =SUM(N38:P38) -> 0 | R38: 0 | S38: 0 | T38: 0 | U38: =SUM(R38:T38) -> 0 | V38: 0 | W38: 0 | X38: 0 | Y38: =SUM(V38:X38) -> 0
A39: 2025-07-22 | B39: 0 | C39: 0 | D39: 0 | E39: 0 | F39: 0 | G39: 0 | H39: 0 | I39: 0 | J39: 0 | K39: 0 | L39: 0 | M39: 0 | N39: 0 | O39: 0 | P39: 0 | Q39: 0 | R39: 0 | S39: 0 | T39: 0 | U39: 0 | V39: 0 | W39: 0 | X39: 0 | Y39: 0
A40: 2025-08-22 | B40: =SUM(F40,J40,N40,R40,V40) -> 0 | C40: =SUM(G40,K40,O40,S40,W40) -> 0 | D40: =SUM(H40,L40,P40,T40,X40) -> 0 | E40: =SUM(B40:D40) -> 0 | F40: 0 | G40: 0 | H40: 0 | I40: =SUM(F40:H40) -> 0 | J40: 0 | K40: 0 | L40: 0 | M40: =SUM(J40:L40) -> 0 | N40: 0 | O40: 0 | P40: 0 | Q40: =SUM(N40:P40) -> 0 | R40: 0 | S40: 0 | T40: 0 | U40: =SUM(R40:T40) -> 0 | V40: 0 | W40: 0 | X40: 0 | Y40: =SUM(V40:X40) -> 0
A41: 2025-09-22 | B41: =SUM(F41,J41,N41,R41,V41) -> 0 | C41: =SUM(G41,K41,O41,S41,W41) -> 0 | D41: =SUM(H41,L41,P41,T41,X41) -> 0 | E41: =SUM(B41:D41) -> 0 | F41: 0 | G41: 0 | H41: 0 | I41: =SUM(F41:H41) -> 0 | J41: 0 | K41: 0 | L41: 0 | M41: =SUM(J41:L41) -> 0 | N41: 0 | O41: 0 | P41: 0 | Q41: =SUM(N41:P41) -> 0 | R41: 0 | S41: 0 | T41: 0 | U41: =SUM(R41:T41) -> 0 | V41: 0 | W41: 0 | X41: 0 | Y41: =SUM(V41:X41) -> 0
A42: 2025-10-22 | B42: 0 | C42: =SUM(G42,K42,O42,S42,W42) -> 0 | D42: =SUM(H42,L42,P42,T42,X42) -> 0 | E42: =SUM(B42:D42) -> 0 | F42: 0 | G42: 0 | H42: 0 | I42: =SUM(F42:H42) -> 0 | J42: 0 | K42: 0 | L42: 0 | M42: =SUM(J42:L42) -> 0 | N42: 0 | O42: 0 | P42: 0 | Q42: =SUM(N42:P42) -> 0 | R42: 0 | S42: 0 | T42: 0 | U42: =SUM(R42:T42) -> 0 | V42: 0 | W42: 0 | X42: 0 | Y42: =SUM(V42:X42) -> 0
A43: 2025-11-22 | B43: 0 | C43: =SUM(G43,K43,O43,S43,W43) -> 0 | D43: =SUM(H43,L43,P43,T43,X43) -> 0 | E43: =SUM(B43:D43) -> 0 | F43: 0 | G43: 0 | H43: 0 | I43: =SUM(F43:H43) -> 0 | J43: 0 | K43: 0 | L43: 0 | M43: =SUM(J43:L43) -> 0 | N43: 0 | O43: 0 | P43: 0 | Q43: =SUM(N43:P43) -> 0 | R43: 0 | S43: 0 | T43: 0 | U43: =SUM(R43:T43) -> 0 | V43: 0 | W43: 0 | X43: 0 | Y43: =SUM(V43:X43) -> 0
A44: 2025-12-22 | B44: 0 | C44: =SUM(G44,K44,O44,S44,W44) -> 0 | D44: =SUM(H44,L44,P44,T44,X44) -> 0 | E44: =SUM(B44:D44) -> 0 | F44: 0 | G44: 0 | H44: 0 | I44: =SUM(F44:H44) -> 0 | J44: 0 | K44: 0 | L44: 0 | M44: =SUM(J44:L44) -> 0 | N44: 0 | O44: 0 | P44: 0 | Q44: =SUM(N44:P44) -> 0 | R44: 0 | S44: 0 | T44: 0 | U44: =SUM(R44:T44) -> 0 | V44: 0 | W44: 0 | X44: 0 | Y44: =SUM(V44:X44) -> 0
A45: 2026-01-22 | B45: 0 | C45: =SUM(G45,K45,O45,S45,W45) -> 0 | D45: =SUM(H45,L45,P45,T45,X45) -> 0 | E45: =SUM(B45:D45) -> 0 | F45: 0 | G45: 0 | H45: 0 | I45: =SUM(F45:H45) -> 0 | J45: 0 | K45: 0 | L45: 0 | M45: =SUM(J45:L45) -> 0 | N45: 0 | O45: 0 | P45: 0 | Q45: =SUM(N45:P45) -> 0 | R45: 0 | S45: 0 | T45: 0 | U45: =SUM(R45:T45) -> 0 | V45: 0 | W45: 0 | X45: 0 | Y45: =SUM(V45:X45) -> 0
A46: 2026-02-22 | B46: 0 | C46: =SUM(G46,K46,O46,S46,W46) -> 0 | D46: =SUM(H46,L46,P46,T46,X46) -> 0 | E46: =SUM(B46:D46) -> 0 | F46: 0 | G46: 0 | H46: 0 | I46: =SUM(F46:H46) -> 0 | J46: 0 | K46: 0 | L46: 0 | M46: =SUM(J46:L46) -> 0 | N46: 0 | O46: 0 | P46: 0 | Q46: =SUM(N46:P46) -> 0 | R46: 0 | S46: 0 | T46: 0 | U46: =SUM(R46:T46) -> 0 | V46: 0 | W46: 0 | X46: 0 | Y46: =SUM(V46:X46) -> 0
A47: 2026-03-22 | B47: =SUM(F47,J47,N47,R47,V47) -> 0 | C47: =SUM(G47,K47,O47,S47,W47) -> 0 | D47: =SUM(H47,L47,P47,T47,X47) -> 0 | E47: =SUM(B47:D47) -> 0 | F47: 0 | G47: 0 | H47: 0 | I47: =SUM(F47:H47) -> 0 | J47: 0 | K47: 0 | L47: 0 | M47: =SUM(J47:L47) -> 0 | N47: 0 | O47: 0 | P47: 0 | Q47: =SUM(N47:P47) -> 0 | R47: 0 | S47: 0 | T47: 0 | U47: =SUM(R47:T47) -> 0 | V47: 0 | W47: 0 | X47: 0 | Y47: =SUM(V47:X47) -> 0
A48: 2026-04-22 | B48: =SUM(F48,J48,N48,R48,V48) -> 0 | C48: =SUM(G48,K48,O48,S48,W48) -> 0 | D48: =SUM(H48,L48,P48,T48,X48) -> 0 | E48: =SUM(B48:D48) -> 0 | F48: 0 | G48: 0 | H48: 0 | I48: =SUM(F48:H48) -> 0 | J48: 0 | K48: 0 | L48: 0 | M48: =SUM(J48:L48) -> 0 | N48: 0 | O48: 0 | P48: 0 | Q48: =SUM(N48:P48) -> 0 | R48: 0 | S48: 0 | T48: 0 | U48: =SUM(R48:T48) -> 0 | V48: 0 | W48: 0 | X48: 0 | Y48: =SUM(V48:X48) -> 0
A49: 2026-05-22 | B49: =SUM(F49,J49,N49,R49,V49) -> 0 | C49: =SUM(G49,K49,O49,S49,W49) -> 0 | D49: =SUM(H49,L49,P49,T49,X49) -> 0 | E49: =SUM(B49:D49) -> 0 | F49: 0 | G49: 0 | H49: 0 | I49: =SUM(F49:H49) -> 0 | J49: 0 | K49: 0 | L49: 0 | M49: =SUM(J49:L49) -> 0 | N49: 0 | O49: 0 | P49: 0 | Q49: =SUM(N49:P49) -> 0 | R49: 0 | S49: 0 | T49: 0 | U49: =SUM(R49:T49) -> 0 | V49: 0 | W49: 0 | X49: 0 | Y49: =SUM(V49:X49) -> 0
A50: 2026-06-22 | B50: =SUM(F50,J50,N50,R50,V50) -> 0 | C50: =SUM(G50,K50,O50,S50,W50) -> 0 | D50: =SUM(H50,L50,P50,T50,X50) -> 0 | E50: =SUM(B50:D50) -> 0 | F50: 0 | G50: 0 | H50: 0 | I50: =SUM(F50:H50) -> 0 | J50: 0 | K50: 0 | L50: 0 | M50: =SUM(J50:L50) -> 0 | N50: 0 | O50: 0 | P50: 0 | Q50: =SUM(N50:P50) -> 0 | R50: 0 | S50: 0 | T50: 0 | U50: =SUM(R50:T50) -> 0 | V50: 0 | W50: 0 | X50: 0 | Y50: =SUM(V50:X50) -> 0
A52: FT-D1 to FT-D2 Transfer Summary
A53: Total | F53: NW Alberta and NE BC | J53: NE Alberta | N53: Edmonton and Area | R53: SW Alberta | V53: SE Alberta
A54: Month | B54: Approved | C54: Denied | D54: Cancelled | E54: Total | F54: Approved | G54: Denied | H54: Cancelled | I54: Total | J54: Approved | K54: Denied | L54: Cancelled | M54: Total | N54: Approved | O54: Denied | P54: Cancelled | Q54: Total | R54: Approved | S54: Denied | T54: Cancelled | U54: Total | V54: Approved | W54: Denied | X54: Cancelled | Y54: Total
A55: 2025-06-22 | B55: =SUM(F55,J55,N55,R55,V55) -> 9 | C55: =SUM(G55,K55,O55,S55,W55) -> 0 | D55: =SUM(H55,L55,P55,T55,X55) -> 1 | E55: =SUM(B55:D55) -> 10 | F55: 0 | G55: 0 | H55: 0 | I55: =SUM(F55:H55) -> 0 | J55: 0 | K55: 0 | L55: 0 | M55: =SUM(J55:L55) -> 0 | N55: 0 | O55: 0 | P55: 0 | Q55: =SUM(N55:P55) -> 0 | R55: 0 | S55: 0 | T55: 0 | U55: =SUM(R55:T55) -> 0 | V55: 9 | W55: 0 | X55: 1 | Y55: =SUM(X55,W55,V55) -> 10
A56: 2025-07-22 | B56: =SUM(F56,J56,N56,R56,V56) -> 12 | C56: =SUM(G56,K56,O56,S56,W56) -> 0 | D56: =SUM(H56,L56,P56,T56,X56) -> 0 | E56: =SUM(B56:D56) -> 12 | F56: 0 | G56: 0 | H56: 0 | I56: =SUM(F56:H56) -> 0 | J56: 0 | K56: 0 | L56: 0 | M56: =SUM(J56:L56) -> 0 | N56: 0 | O56: 0 | P56: 0 | Q56: =SUM(N56:P56) -> 0 | R56: 0 | S56: 0 | T56: 0 | U56: =SUM(R56:T56) -> 0 | V56: 12 | W56: 0 | X56: 0 | Y56: =SUM(X56,W56,V56) -> 12
A57: 2025-08-22 | B57: =SUM(F57,J57,N57,R57,V57) -> 0 | C57: =SUM(G57,K57,O57,S57,W57) -> 0 | D57: =SUM(H57,L57,P57,T57,X57) -> 0 | E57: =SUM(B57:D57) -> 0 | F57: 0 | G57: 0 | H57: 0 | I57: 0 | J57: 0 | K57: 0 | L57: 0 | M57: 0 | N57: 0 | O57: 0 | P57: 0 | Q57: 0 | R57: 0 | S57: 0 | T57: 0 | U57: 0 | V57: 0 | W57: 0 | X57: 0 | Y57: =SUM(X57,W57,V57) -> 0
A58: 2025-09-22 | B58: 0 | C58: =SUM(G58,K58,O58,S58,W58) -> 0 | D58: =SUM(H58,L58,P58,T58,X58) -> 0 | E58: =SUM(B58:D58) -> 0 | F58: 0 | G58: 0 | H58: 0 | I58: 0 | J58: 0 | K58: 0 | L58: 0 | M58: 0 | N58: 0 | O58: 0 | P58: 0 | Q58: 0 | R58: 0 | S58: 0 | T58: 0 | U58: 0 | V58: 0 | W58: 0 | X58: 0 | Y58: =SUM(X58,W58,V58) -> 0
A59: 2025-10-22 | B59: 0 | C59: =SUM(G59,K59,O59,S59,W59) -> 0 | D59: =SUM(H59,L59,P59,T59,X59) -> 0 | E59: =SUM(B59:D59) -> 0 | F59: 0 | G59: 0 | H59: 0 | I59: 0 | J59: 0 | K59: 0 | L59: 0 | M59: 0 | N59: 0 | O59: 0 | P59: 0 | Q59: 0 | R59: 0 | S59: 0 | T59: 0 | U59: 0 | V59: 0 | W59: 0 | X59: 0 | Y59: =SUM(X59,W59,V59) -> 0
A60: 2025-11-22 | B60: 0 | C60: =SUM(G60,K60,O60,S60,W60) -> 0 | D60: =SUM(H60,L60,P60,T60,X60) -> 0 | E60: =SUM(B60:D60) -> 0 | F60: 0 | G60: 0 | H60: 0 | I60: 0 | J60: 0 | K60: 0 | L60: 0 | M60: 0 | N60: 0 | O60: 0 | P60: 0 | Q60: 0 | R60: 0 | S60: 0 | T60: 0 | U60: 0 | V60: 0 | W60: 0 | X60: 0 | Y60: =SUM(X60,W60,V60) -> 0
A61: 2025-12-22 | B61: 0 | C61: =SUM(G61,K61,O61,S61,W61) -> 0 | D61: =SUM(H61,L61,P61,T61,X61) -> 0 | E61: =SUM(B61:D61) -> 0 | F61: 0 | G61: 0 | H61: 0 | I61: 0 | J61: 0 | K61: 0 | L61: 0 | M61: 0 | N61: 0 | O61: 0 | P61: 0 | Q61: 0 | R61: 0 | S61: 0 | T61: 0 | U61: 0 | V61: 0 | W61: 0 | X61: 0 | Y61: =SUM(X61,W61,V61) -> 0
A62: 2026-01-22 | B62: 0 | C62: =SUM(G62,K62,O62,S62,W62) -> 0 | D62: =SUM(H62,L62,P62,T62,X62) -> 0 | E62: =SUM(B62:D62) -> 0 | F62: 0 | G62: 0 | H62: 0 | I62: 0 | J62: 0 | K62: 0 | L62: 0 | M62: 0 | N62: 0 | O62: 0 | P62: 0 | Q62: 0 | R62: 0 | S62: 0 | T62: 0 | U62: 0 | V62: 0 | W62: 0 | X62: 0 | Y62: =SUM(X62,W62,V62) -> 0
A63: 2026-02-22 | B63: =SUM(F63,J63,N63,R63,V63) -> 1 | C63: =SUM(G63,K63,O63,S63,W63) -> 0 | D63: =SUM(H63,L63,P63,T63,X63) -> 0 | E63: =SUM(B63:D63) -> 1 | F63: 1 | G63: 0 | H63: 0 | I63: 1 | J63: 0 | K63: 0 | L63: 0 | M63: 0 | N63: 0 | O63: 0 | P63: 0 | Q63: 0 | R63: 0 | S63: 0 | T63: 0 | U63: 0 | V63: 0 | W63: 0 | X63: 0 | Y63: =SUM(X63,W63,V63) -> 0
A64: 2026-03-22 | B64: =SUM(F64,J64,N64,R64,V64) -> 0 | C64: =SUM(G64,K64,O64,S64,W64) -> 0 | D64: =SUM(H64,L64,P64,T64,X64) -> 0 | E64: =SUM(B64:D64) -> 0 | F64: 0 | G64: 0 | H64: 0 | I64: 0 | J64: 0 | K64: 0 | L64: 0 | M64: 0 | N64: 0 | O64: 0 | P64: 0 | Q64: 0 | R64: 0 | S64: 0 | T64: 0 | U64: 0 | V64: 0 | W64: 0 | X64: 0 | Y64: =SUM(X64,W64,V64) -> 0
A65: 2026-04-22 | B65: =SUM(F65,J65,N65,R65,V65) -> 0 | C65: =SUM(G65,K65,O65,S65,W65) -> 0 | D65: =SUM(H65,L65,P65,T65,X65) -> 0 | E65: =SUM(B65:D65) -> 0 | F65: 0 | G65: 0 | H65: 0 | I65: 0 | J65: 0 | K65: 0 | L65: 0 | M65: 0 | N65: 0 | O65: 0 | P65: 0 | Q65: 0 | R65: 0 | S65: 0 | T65: 0 | U65: 0 | V65: 0 | W65: 0 | X65: 0 | Y65: =SUM(X65,W65,V65) -> 0
A66: 2026-05-22 | B66: =SUM(F66,J66,N66,R66,V66) -> 0 | C66: =SUM(G66,K66,O66,S66,W66) -> 0 | D66: =SUM(H66,L66,P66,T66,X66) -> 0 | E66: =SUM(B66:D66) -> 0 | F66: 0 | G66: 0 | H66: 0 | I66: 0 | J66: 0 | K66: 0 | L66: 0 | M66: 0 | N66: 0 | O66: 0 | P66: 0 | Q66: 0 | R66: 0 | S66: 0 | T66: 0 | U66: 0 | V66: 0 | W66: 0 | X66: 0 | Y66: =SUM(X66,W66,V66) -> 0
A67: 2026-06-22 | B67: 0 | C67: 0 | D67: 0 | E67: 0 | F67: 0 | G67: 0 | H67: 0 | I67: 0 | J67: 0 | K67: 0 | L67: 0 | M67: 0 | N67: 0 | O67: 0 | P67: 0 | Q67: 0 | R67: 0 | S67: 0 | T67: 0 | U67: 0 | V67: 0 | W67: 0 | X67: 0 | Y67: 0
A78: FT-D2 to FT-D1 Transfer Summary
A79: Total | F79: NW Alberta and NE BC | J79: NE Alberta | N79: Edmonton and Area | R79: SW Alberta | V79: SE Alberta
A80: Month | B80: Approved | C80: Denied | D80: Cancelled | E80: Total | F80: Approved | G80: Denied | H80: Cancelled | I80: Total | J80: Approved | K80: Denied | L80: Cancelled | M80: Total | N80: Approved | O80: Denied | P80: Cancelled | Q80: Total | R80: Approved | S80: Denied | T80: Cancelled | U80: Total | V80: Approved | W80: Denied | X80: Cancelled | Y80: Total
A81: 2025-06-22 | B81: =SUM(F81,J81,N81,R81,V81) -> 0 | C81: =SUM(G81,K81,O81,S81,W81) -> 0 | D81: =SUM(H81,L81,P81,T81,X81) -> 0 | E81: =SUM(B81:D81) -> 0 | F81: 0 | G81: 0 | H81: 0 | I81: =SUM(F81:H81) -> 0 | J81: 0 | K81: 0 | L81: 0 | M81: =SUM(J81:L81) -> 0 | N81: 0 | O81: 0 | P81: 0 | Q81: =SUM(N81:P81) -> 0 | R81: 0 | S81: 0 | T81: 0 | U81: =SUM(R81:T81) -> 0 | V81: 0 | W81: 0 | X81: 0 | Y81: =SUM(V81:X81) -> 0
A82: 2025-07-22 | B82: 0 | C82: 0 | D82: 0 | E82: 0 | F82: 0 | G82: 0 | H82: 0 | I82: =SUM(F82:H82) -> 0 | J82: 0 | K82: 0 | L82: 0 | M82: =SUM(J82:L82) -> 0 | N82: 0 | O82: 0 | P82: 0 | Q82: =SUM(N82:P82) -> 0 | R82: 0 | S82: 0 | T82: 0 | U82: 0 | V82: 0 | W82: 0 | X82: 0 | Y82: 0
A83: 2025-08-22 | B83: 3 | C83: 0 | D83: 1 | E83: 4 | F83: 0 | G83: 0 | H83: 0 | I83: 0 | J83: 0 | K83: 0 | L83: 0 | M83: 0 | N83: 0 | O83: 0 | P83: 0 | Q83: 0 | R83: 3 | S83: 0 | T83: 1 | U83: 4 | V83: 0 | W83: 0 | X83: 0 | Y83: 0
A84: 2025-09-22 | B84: 0 | C84: 0 | D84: 0 | E84: 0 | F84: 0 | G84: 0 | H84: 0 | I84: 0 | J84: 0 | K84: 0 | L84: 0 | M84: 0 | N84: 0 | O84: 0 | P84: 0 | Q84: 0 | R84: 0 | S84: 0 | T84: 0 | U84: 0 | V84: 0 | W84: 0 | X84: 0 | Y84: 0
A85: 2025-10-22 | B85: 3 | C85: 2 | D85: 1 | E85: 6 | F85: 0 | G85: 0 | H85: 0 | I85: 0 | J85: 0 | K85: 0 | L85: 0 | M85: 0 | N85: 0 | O85: 0 | P85: 0 | Q85: 0 | R85: 3 | S85: 2 | T85: 1 | U85: 6 | V85: 0 | W85: 0 | X85: 0 | Y85: 0
A86: 2025-11-22 | B86: 3 | C86: 1 | D86: 0 | E86: 4 | F86: 0 | G86: 0 | H86: 0 | I86: 0 | J86: 0 | K86: 0 | L86: 0 | M86: 0 | N86: 0 | O86: 0 | P86: 0 | Q86: 0 | R86: 3 | S86: 1 | T86: 0 | U86: 4 | V86: 0 | W86: 0 | X86: 0 | Y86: 0
A87: 2025-12-22 | B87: 5 | C87: 0 | D87: 0 | E87: 5 | F87: 0 | G87: 0 | H87: 0 | I87: 0 | J87: 0 | K87: 0 | L87: 0 | M87: 0 | N87: 0 | O87: 0 | P87: 0 | Q87: 0 | R87: 5 | S87: 0 | T87: 0 | U87: 5 | V87: 0 | W87: 0 | X87: 0 | Y87: 0
A88: 2026-01-22 | B88: 7 | C88: 0 | D88: 0 | E88: 7 | F88: 0 | G88: 0 | H88: 0 | I88: 0 | J88: 0 | K88: 0 | L88: 0 | M88: 0 | N88: 0 | O88: 0 | P88: 0 | Q88: 0 | R88: 7 | S88: 0 | T88: 0 | U88: 7 | V88: 0 | W88: 0 | X88: 0 | Y88: 0
A89: 2026-02-22 | B89: 6 | C89: 0 | D89: 0 | E89: 6 | F89: 0 | G89: 0 | H89: 0 | I89: 0 | J89: 0 | K89: 0 | L89: 0 | M89: 0 | N89: 0 | O89: 0 | P89: 0 | Q89: 0 | R89: 6 | S89: 0 | T89: 0 | U89: 6 | V89: 0 | W89: 0 | X89: 0 | Y89: 0
A90: 2026-03-22 | B90: 0 | C90: 0 | D90: 0 | E90: 0 | F90: 0 | G90: 0 | H90: 0 | I90: 0 | J90: 0 | K90: 0 | L90: 0 | M90: 0 | N90: 0 | O90: 0 | P90: 0 | Q90: 0 | R90: 0 | S90: 0 | T90: 0 | U90: 0 | V90: 0 | W90: 0 | X90: 0 | Y90: 0
A91: 2026-04-22 | B91: 6 | C91: 0 | D91: 0 | E91: 6 | F91: 0 | G91: 0 | H91: 0 | I91: 0 | J91: 0 | K91: 0 | L91: 0 | M91: 0 | N91: 0 | O91: 0 | P91: 0 | Q91: 0 | R91: 6 | S91: 0 | T91: 0 | U91: 6 | V91: 0 | W91: 0 | X91: 0 | Y91: 0
A92: 2026-05-22 | B92: 2 | C92: 1 | D92: 0 | E92: 3 | F92: 0 | G92: 0 | H92: 0 | I92: 0 | J92: 0 | K92: 0 | L92: 0 | M92: 0 | N92: 0 | O92: 0 | P92: 0 | Q92: 0 | R92: 2 | S92: 0 | T92: 0 | U92: 2 | V92: 0 | W92: 1 | X92: 0 | Y92: 1
A93: 2026-06-22 | B93: 3 | C93: 0 | D93: 0 | E93: 3 | F93: 0 | G93: 0 | H93: 0 | I93: 0 | J93: 0 | K93: 0 | L93: 0 | M93: 0 | N93: 0 | O93: 0 | P93: 0 | Q93: 0 | R93: 3 | S93: 0 | T93: 0 | U93: =SUM(R93:T93) -> 3 | V93: 0 | W93: 0 | X93: 0 | Y93: =SUM(V93:X93) -> 0
A95: FT-D1 to FT-D1 Transfer Summary
A96: Empress to McNeill FT-D1 | H96: McNeill to Empress FT-D1
A97: Month | B97: Approved (Manual) | C97: Approved (ATP) | D97: Denied | E97: Cancelled | F97: Total | H97: Month | I97: Approved (Manual) | J97: Approved (ATP) | K97: Denied | L97: Cancelled | M97: Total
A98: 2025-06-22 | B98: 16 | C98: 121 | D98: 0 | E98: 2 | F98: =SUM(B98:E98) -> 139 | H98: 2025-06-22 | I98: 17 | J98: 71 | K98: 0 | L98: 0 | M98: =SUM(I98:L98) -> 88
A99: 2025-07-22 | B99: 17 | C99: 103 | D99: 0 | E99: 4 | F99: 124 | H99: 2025-07-22 | I99: 13 | J99: 51 | K99: 0 | L99: 0 | M99: =SUM(I99:L99) -> 64
A100: 2025-08-22 | B100: 0 | C100: 107 | D100: 0 | E100: 0 | F100: 107 | H100: 2025-08-22 | I100: 0 | J100: 25 | K100: 0 | L100: 0 | M100: =SUM(I100:L100) -> 25
A101: 2025-09-22 | B101: 0 | C101: 48 | D101: 0 | E101: 0 | F101: 48 | H101: 2025-09-22 | I101: 29 | J101: 3 | K101: 0 | L101: 0 | M101: =SUM(I101:L101) -> 32
A102: 2025-10-22 | B102: 2 | C102: 55 | D102: 0 | E102: 0 | F102: 57 | H102: 2025-10-22 | I102: 26 | J102: 13 | K102: 0 | L102: 0 | M102: =SUM(I102:L102) -> 39
A103: 2025-11-22 | B103: 4 | C103: 40 | D103: 0 | E103: 0 | F103: 44 | H103: 2025-11-22 | I103: 6 | J103: 54 | K103: 0 | L103: 0 | M103: =SUM(I103:L103) -> 60
A104: 2025-12-22 | B104: 0 | C104: 46 | D104: 0 | E104: 0 | F104: 46 | H104: 2025-12-22 | I104: 0 | J104: 43 | K104: 0 | L104: 0 | M104: =SUM(I104:L104) -> 43
A105: 2026-01-22 | B105: 2 | C105: 67 | D105: 0 | E105: 1 | F105: 70 | H105: 2026-01-22 | I105: 1 | J105: 50 | K105: 0 | L105: 1 | M105: =SUM(I105:L105) -> 52
A106: 2026-02-22 | B106: 1 | C106: 25 | D106: 0 | E106: 0 | F106: 26 | H106: 2026-02-22 | I106: 5 | J106: 57 | K106: 0 | L106: 0 | M106: =SUM(I106:L106) -> 62
A107: 2026-03-22 | B107: 0 | C107: 20 | D107: 0 | E107: 0 | F107: 20 | H107: 2026-03-22 | I107: 1 | J107: 70 | K107: 0 | L107: 0 | M107: =SUM(I107:L107) -> 71
A108: 2026-04-22 | B108: 0 | C108: 25 | D108: 0 | E108: 0 | F108: 25 | H108: 2026-04-22 | I108: 0 | J108: 54 | K108: 0 | L108: 0 | M108: =SUM(I108:L108) -> 54
A109: 2026-05-22 | B109: 0 | C109: 15 | D109: 0 | E109: 0 | F109: 15 | H109: 2026-05-22 | I109: 0 | J109: 58 | K109: 0 | L109: 0 | M109: =SUM(I109:L109) -> 58
A110: 2026-06-22 | B110: 0 | C110: 24 | D110: 0 | E110: 0 | F110: =SUM(B110:E110) -> 24 | H110: 2026-06-22 | I110: 0 | J110: 47 | K110: 0 | L110: 0 | M110: =SUM(I110:L110) -> 47
J111: .
A112: Cross Boundary Transfers
A113: Month | B113: Frequency | C113: Information
A114: 2023-06-01 | B114: N/A | C114: N/A
A115: 2025-06-01 | B115: N/A | C115: N/A
A116: 2025-07-01 | B116: N/A | C116: N/A
A117: 2025-08-01 | B117: N/A | C117: N/A
A118: 2025-09-01 | B118: N/A | C118: N/A
A119: 2025-10-01 | B119: N/A | C119: N/A
A120: 2025-11-01 | B120: N/A | C120: N/A
A121: 2025-12-01 | B121: N/A | C121: N/A
A122: 2026-01-22 | B122: N/A | C122: N/A
A123: 2026-02-22 | B123: 2 | C123: Requested out and back FT-D2 transfers from SW AB area to NW AB and NE BC area was approved
A124: 2026-03-22 | B124: N/A | C124: N/A
A125: 2026-04-22 | B125: N/A | C125: N/A
A126: 2026-05-22 | B126: N/A | C126: N/A
A127: 2026-06-01 | B127: N/A | C127: N/A
A130: Notes:
A131: 1. Values represent the number of transfer requests processed in the specified month, regardless of effective date
A132: 2. Includes all "out and back" and "one-way" transfers
A133: 3. Out and back transfer requests are tallied as a single transaction
A134: 4. Transfers to storage are not included in totals
A135: 5. Transfers that cross a Delivery Design Area boundary are tallied in the area where the "To" location is situated
A136: 6. Cancelled transfer requests are initiated by the requester (customer, marketer etc.)
A137: 7. ATP is the acronym for Automated Transfer Process, requests that meet certain criteria may be approved automatically
A138: 8. Delivery Design Area boundaries are illustrated in the Design Methodology document on Customer Express (see NGTL/Regulatory/Facilities)
A139: http://www.tccustomerexpress.com/docs/ab_regulatory_facilities/Facilities%20Design%20Methodology%20Document%20-%20Revision%20May%2031,%202018_Oct%204.pdf

Sheet FT-D Transfers (Volume)
A1: FT-D Transfer Summary - Volume (GJ/d)
A2: Total | F2: NW Alberta and NE BC | J2: NE Alberta | N2: Edmonton and Area | R2: SW Alberta | V2: SE Alberta
A3: Month | B3: Approved | C3: Denied | D3: Cancelled | E3: Total | F3: Approved | G3: Denied | H3: Cancelled | I3: Total | J3: Approved | K3: Denied | L3: Cancelled | M3: Total | N3: Approved | O3: Denied | P3: Cancelled | Q3: Total | R3: Approved | S3: Denied | T3: Cancelled | U3: Total | V3: Approved | W3: Denied | X3: Cancelled | Y3: Total
A4: 2025-06-22 | B4: =SUM(F4,J4,N4,R4,V4) -> 7394311 | C4: =SUM(G4,K4,O4,S4,W4) -> 0 | D4: =SUM(H4,L4,P4,T4,X4) -> 142063 | E4: =SUM(B4:D4) -> 7536374 | F4: =SUM(F21,F38,F55,F81) -> 0 | G4: 0 | H4: 0 | I4: =SUM(F4:H4) -> 0 | J4: =SUM(J21,J38,J55,J81) -> 24000 | K4: 0 | L4: 30000 | M4: =SUM(J4:L4) -> 54000 | N4: =SUM(N21,N38,N55,N81) -> 196200 | O4: 0 | P4: 17200 | Q4: =SUM(N4:P4) -> 213400 | R4: =SUM(R21,R38,R55,R81) -> 0 | S4: 0 | T4: 0 | U4: =SUM(R4:T4) -> 0 | V4: =SUM(V21,V38,V55,V81,B98,C98,I98,J98) -> 7174111 | W4: =SUM(W21,W38,W55,W81,D98,K98) -> 0 | X4: =SUM(X21,X38,X55,X81,E98,L98) -> 94863 | Y4: =SUM(V4:X4) -> 7268974
A5: 2025-07-22 | B5: =SUM(F5,J5,N5,R5,V5) -> 5501141 | C5: 0 | D5: 61390 | E5: 5562531 | F5: 0 | G5: 0 | H5: 0 | I5: =SUM(F5:H5) -> 0 | J5: 7500 | K5: 0 | L5: 0 | M5: 7500 | N5: 23000 | O5: 0 | P5: 0 | Q5: 23000 | R5: 0 | S5: 0 | T5: 0 | U5: 0 | V5: 5470641 | W5: 0 | X5: 61390 | Y5: =SUM(V5:X5) -> 5532031
A6: 2025-08-22 | B6: 3292501 | C6: 0 | D6: 300 | E6: 3292801 | F6: 0 | G6: 0 | H6: 0 | I6: 0 | J6: 12500 | K6: 0 | L6: 0 | M6: 12500 | N6: 0 | O6: 0 | P6: 0 | Q6: 0 | R6: 4000 | S6: 0 | T6: 300 | U6: 4300 | V6: 3276001 | W6: 0 | X6: 0 | Y6: 3276001
A7: 2025-09-22 | B7: 2238408 | C7: 0 | D7: 106000 | E7: 2344408 | F7: 0 | G7: 0 | H7: 0 | I7: 0 | J7: 61320 | K7: 0 | L7: 0 | M7: 61320 | N7: 60791 | O7: 0 | P7: 106000 | Q7: 166791 | R7: 0 | S7: 0 | T7: 0 | U7: 0 | V7: 2116297 | W7: 0 | X7: 0 | Y7: 2116297
A8: 2025-10-22 | B8: 1572887 | C8: 232062 | D8: 126112 | E8: 1931061 | F8: 0 | G8: 0 | H8: 0 | I8: 0 | J8: 58734 | K8: 228362 | L8: 77462 | M8: 364558 | N8: 27000 | O8: 0 | P8: 0 | Q8: 27000 | R8: 4500 | S8: 3700 | T8: 200 | U8: 8400 | V8: 1482653 | W8: 0 | X8: 48450 | Y8: 1531103
A9: 2025-11-22 | B9: 4158377 | C9: 11000 | D9: 5650 | E9: 4175027 | F9: 0 | G9: 0 | H9: 0 | I9: 0 | J9: 7510 | K9: 0 | L9: 0 | M9: 7510 | N9: 4000 | O9: 0 | P9: 0 | Q9: 4000 | R9: 7150 | S9: 6000 | T9: 650 | U9: 13800 | V9: 4139717 | W9: 5000 | X9: 5000 | Y9: 4149717
A10: 2025-12-22 | B10: 3406961 | C10: 44392 | D10: 44260 | E10: 3495613 | F10: 0 | G10: 1650 | H10: 0 | I10: 1650 | J10: 261371 | K10: 42742 | L10: 35754 | M10: 339867 | N10: 53306 | O10: 0 | P10: 1506 | Q10: 54812 | R10: 13800 | S10: 0 | T10: 0 | U10: 13800 | V10: 3078484 | W10: 0 | X10: 7000 | Y10: 3085484
A11: 2026-01-22 | B11: 4650400 | C11: 0 | D11: 60450 | E11: 4710850 | F11: 3000 | G11: 0 | H11: 0 | I11: 3000 | J11: 35250 | K11: 0 | L11: 350 | M11: 35600 | N11: 0 | O11: 0 | P11: 0 | Q11: 0 | R11: 28150 | S11: 0 | T11: 0 | U11: 28150 | V11: 4584000 | W11: 0 | X11: 60100 | Y11: 4644100
A12: 2026-02-22 | B12: 4330406 | C12: 18200 | D12: 20000 | E12: 4368606 | F12: 44500 | G12: 0 | H12: 0 | I12: 44500 | J12: 143205 | K12: 18200 | L12: 20000 | M12: 181405 | N12: 3000 | O12: 0 | P12: 0 | Q12: 3000 | R12: 15375 | S12: 0 | T12: 0 | U12: 15375 | V12: 4124326 | W12: 0 | X12: 0 | Y12: 4124326
A13: 2026-03-22 | B13: 3309267 | C13: 0 | D13: 15000 | E13: 3324267 | F13: 0 | G13: 0 | H13: 0 | I13: 0 | J13: 134132 | K13: 0 | L13: 15000 | M13: 149132 | N13: 10000 | O13: 0 | P13: 0 | Q13: 10000 | R13: 0 | S13: 0 | T13: 0 | U13: 0 | V13: 3165135 | W13: 0 | X13: 0 | Y13: 3165135
A14: 2026-04-22 | B14: 1794359 | C14: 0 | D14: 0 | E14: 1794359 | F14: 0 | G14: 0 | H14: 0 | I14: 0 | J14: 66466 | K14: 0 | L14: 0 | M14: 66466 | N14: 7800 | O14: 0 | P14: 0 | Q14: 7800 | R14: 23975 | S14: 0 | T14: 0 | U14: 23975 | V14: 1696118 | W14: 0 | X14: 0 | Y14: 1696118
A15: 2026-05-22 | B15: 1459764 | C15: 101 | D15: 0 | E15: 1459865 | F15: 0 | G15: 0 | H15: 0 | I15: 0 | J15: 84216 | K15: 0 | L15: 0 | M15: 84216 | N15: 2200 | O15: 0 | P15: 0 | Q15: 2200 | R15: 5000 | S15: 0 | T15: 0 | U15: 5000 | V15: 1368348 | W15: 101 | X15: 0 | Y15: 1368449
A16: 2026-06-22 | B16: 1532805 | C16: 0 | D16: 15000 | E16: 1547805 | F16: 1400 | G16: 0 | H16: 0 | I16: 1400 | J16: 97616 | K16: 0 | L16: 15000 | M16: 112616 | N16: 5200 | O16: 0 | P16: 0 | Q16: 5200 | R16: 3575 | S16: 0 | T16: 0 | U16: 3575 | V16: 1425014 | W16: 0 | X16: 0 | Y16: =SUM(V16:X16) -> 1425014
A18: FT-D2 to FT-D2 Transfer Summary
A19: Total | F19: NW Alberta and NE BC | J19: NE Alberta | N19: Edmonton and Area | R19: SW Alberta | V19: SE Alberta
A20: Month | B20: Approved | C20: Denied | D20: Cancelled | E20: Total | F20: Approved | G20: Denied | H20: Cancelled | I20: Total | J20: Approved | K20: Denied | L20: Cancelled | M20: Total | N20: Approved | O20: Denied | P20: Cancelled | Q20: Total | R20: Approved | S20: Denied | T20: Cancelled | U20: Total | V20: Approved | W20: Denied | X20: Cancelled | Y20: Total
A21: 2025-06-22 | B21: =SUM(F21,J21,N21,R21,V21) -> 276550 | C21: =SUM(G21,K21,O21,S21,W21) -> 0 | D21: 47200 | E21: 323750 | F21: 0 | G21: 0 | H21: 0 | I21: =SUM(F21:H21) -> 0 | J21: 24000 | K21: 0 | L21: 30000 | M21: =SUM(J21:L21) -> 54000 | N21: 196200 | O21: 0 | P21: 17200 | Q21: =SUM(N21:P21) -> 213400 | R21: 0 | S21: 0 | T21: 0 | U21: =SUM(R21:T21) -> 0 | V21: 56350 | W21: 0 | X21: 0 | Y21: =SUM(V21:X21) -> 56350
A22: 2025-07-22 | B22: =SUM(F22,J22,N22,R22,V22) -> 73100 | C22: =SUM(G22,K22,O22,S22,W22) -> 0 | D22: =SUM(H22,L22,P22,T22,X22) -> 0 | E22: =SUM(I22,M22,Q22,U22,Y22) -> 73100 | F22: 0 | G22: 0 | H22: 0 | I22: 0 | J22: 7500 | K22: 0 | L22: 0 | M22: 7500 | N22: 23000 | O22: 0 | P22: 0 | Q22: 23000 | R22: 0 | S22: 0 | T22: 0 | U22: 0 | V22: 42600 | W22: 0 | X22: 0 | Y22: 42600
A23: 2025-08-22 | B23: 31200 | C23: 0 | D23: 0 | E23: 31200 | F23: 0 | G23: 0 | H23: 0 | I23: 0 | J23: 12500 | K23: 0 | L23: 0 | M23: 12500 | N23: 0 | O23: 0 | P23: 0 | Q23: 0 | R23: 0 | S23: 0 | T23: 0 | U23: 0 | V23: 18700 | W23: 0 | X23: 0 | Y23: 18700
A24: 2025-09-22 | B24: 197511 | C24: 0 | D24: 106000 | E24: 303511 | F24: 0 | G24: 0 | H24: 0 | I24: 0 | J24: 61320 | K24: 0 | L24: 0 | M24: 61320 | N24: 60791 | O24: 0 | P24: 106000 | Q24: 166791 | R24: 0 | S24: 0 | T24: 0 | U24: 0 | V24: 75400 | W24: 0 | X24: 0 | Y24: 75400
A25: 2025-10-22 | B25: 108534 | C25: 228362 | D25: 125912 | E25: 462808 | F25: 0 | G25: 0 | H25: 0 | I25: 0 | J25: 58734 | K25: 228362 | L25: 77462 | M25: 364558 | N25: 27000 | O25: 0 | P25: 0 | Q25: 27000 | R25: 0 | S25: 0 | T25: 0 | U25: 0 | V25: 22800 | W25: 0 | X25: 48450 | Y25: 71250
A26: 2025-11-22 | B26: 44310 | C26: 5000 | D26: 5650 | E26: 54960 | F26: 0 | G26: 0 | H26: 0 | I26: 0 | J26: 7510 | K26: 0 | L26: 0 | M26: 7510 | N26: 4000 | O26: 0 | P26: 0 | Q26: 4000 | R26: 0 | S26: 0 | T26: 650 | U26: 650 | V26: 32800 | W26: 5000 | X26: 5000 | Y26: 42800
A27: 2025-12-22 | B27: 339577 | C27: 44392 | D27: 44260 | E27: 428229 | F27: 0 | G27: 1650 | H27: 0 | I27: 1650 | J27: 261371 | K27: 42742 | L27: 35754 | M27: 339867 | N27: 53306 | O27: 0 | P27: 1506 | Q27: 54812 | R27: 1500 | S27: 0 | T27: 0 | U27: 1500 | V27: 23400 | W27: 0 | X27: 7000 | Y27: 30400
A28: 2026-01-22 | B28: 59550 | C28: 0 | D28: 450 | E28: 60000 | F28: 3000 | G28: 0 | H28: 0 | I28: 3000 | J28: 35250 | K28: 0 | L28: 350 | M28: 35600 | N28: 0 | O28: 0 | P28: 0 | Q28: 0 | R28: 0 | S28: 0 | T28: 0 | U28: 0 | V28: 21300 | W28: 0 | X28: 100 | Y28: 21400
A29: 2026-02-22 | B29: 169805 | C29: 18200 | D29: 20000 | E29: 208005 | F29: 4500 | G29: 0 | H29: 0 | I29: 4500 | J29: 143205 | K29: 18200 | L29: 20000 | M29: 181405 | N29: 3000 | O29: 0 | P29: 0 | Q29: 3000 | R29: 2800 | S29: 0 | T29: 0 | U29: 2800 | V29: 16300 | W29: 0 | X29: 0 | Y29: 16300
A30: 2026-03-22 | B30: 202932 | C30: 0 | D30: 15000 | E30: 217932 | F30: 0 | G30: 0 | H30: 0 | I30: 0 | J30: 134132 | K30: 0 | L30: 15000 | M30: 149132 | N30: 10000 | O30: 0 | P30: 0 | Q30: 10000 | R30: 0 | S30: 0 | T30: 0 | U30: 0 | V30: 58800 | W30: 0 | X30: 0 | Y30: 58800
A31: 2026-04-22 | B31: 93566 | C31: 0 | D31: 0 | E31: 93566 | F31: 0 | G31: 0 | H31: 0 | I31: 0 | J31: 66466 | K31: 0 | L31: 0 | M31: 66466 | N31: 7800 | O31: 0 | P31: 0 | Q31: 7800 | R31: 0 | S31: 0 | T31: 0 | U31: 0 | V31: 19300 | W31: 0 | X31: 0 | Y31: 19300
A32: 2026-05-22 | B32: 107216 | C32: 0 | D32: 0 | E32: 107216 | F32: 0 | G32: 0 | H32: 0 | I32: 0 | J32: 84216 | K32: 0 | L32: 0 | M32: 84216 | N32: 2200 | O32: 0 | P32: 0 | Q32: 2200 | R32: 0 | S32: 0 | T32: 0 | U32: 0 | V32: 20800 | W32: 0 | X32: 0 | Y32: 20800
A33: 2026-06-22 | B33: 122016 | C33: 0 | D33: 15000 | E33: 137016 | F33: 1400 | G33: 0 | H33: 0 | I33: 1400 | J33: 97616 | K33: 0 | L33: 15000 | M33: 112616 | N33: 5200 | O33: 0 | P33: 0 | Q33: 5200 | R33: 0 | S33: 0 | T33: 0 | U33: 0 | V33: 17800 | W33: 0 | X33: 0 | Y33: 17800
A35: FT-D3 to FT-D3 Transfer Summary
A36: Total | F36: NW Alberta and NE BC | J36: NE Alberta | N36: Edmonton and Area | R36: SW Alberta | V36: SE Alberta
A37: Month | B37: Approved | C37: Denied | D37: Cancelled | E37: Total | F37: Approved | G37: Denied | H37: Cancelled | I37: Total | J37: Approved | K37: Denied | L37: Cancelled | M37: Total | N37: Approved | O37: Denied | P37: Cancelled | Q37: Total | R37: Approved | S37: Denied | T37: Cancelled | U37: Total | V37: Approved | W37: Denied | X37: Cancelled | Y37: Total
A38: 2025-06-22 | B38: =SUM(F38,J38,N38,R38,V38) -> 0 | C38: =SUM(G38,K38,O38,S38,W38) -> 0 | D38: 0 | E38: 0 | F38: 0 | G38: 0 | H38: 0 | I38: =SUM(F38:H38) -> 0 | J38: 0 | K38: 0 | L38: 0 | M38: =SUM(J38:L38) -> 0 | N38: 0 | O38: 0 | P38: 0 | Q38: =SUM(N38:P38) -> 0 | R38: 0 | S38: 0 | T38: 0 | U38: =SUM(R38:T38) -> 0 | V38: 0 | W38: 0 | X38: 0 | Y38: 0
A39: 2025-07-22 | B39: =SUM(F39,J39,N39,R39,V39) -> 0 | C39: =SUM(G39,K39,O39,S39,W39) -> 0 | D39: =SUM(H39,L39,P39,T39,X39) -> 0 | E39: =SUM(I39,M39,Q39,U39,Y39) -> 0 | F39: 0 | G39: 0 | H39: 0 | I39: 0 | J39: 0 | K39: 0 | L39: 0 | M39: 0 | N39: 0 | O39: 0 | P39: 0 | Q39: 0 | R39: 0 | S39: 0 | T39: 0 | U39: 0 | V39: 0 | W39: 0 | X39: 0 | Y39: 0
A40: 2025-08-22 | B40: 0 | C40: 0 | D40: 0 | E40: 0 | F40: 0 | G40: 0 | H40: 0 | I40: 0 | J40: 0 | K40: 0 | L40: 0 | M40: 0 | N40: 0 | O40: 0 | P40: 0 | Q40: 0 | R40: 0 | S40: 0 | T40: 0 | U40: 0 | V40: 0 | W40: 0 | X40: 0 | Y40: 0
A41: 2025-09-22 | B41: 0 | C41: 0 | D41: 0 | E41: 0 | F41: 0 | G41: 0 | H41: 0 | I41: 0 | J41: 0 | K41: 0 | L41: 0 | M41: 0 | N41: 0 | O41: 0 | P41: 0 | Q41: 0 | R41: 0 | S41: 0 | T41: 0 | U41: 0 | V41: 0 | W41: 0 | X41: 0 | Y41: 0
A42: 2025-10-22 | B42: 0 | C42: 0 | D42: 0 | E42: 0 | F42: 0 | G42: 0 | H42: 0 | I42: 0 | J42: 0 | K42: 0 | L42: 0 | M42: 0 | N42: 0 | O42: 0 | P42: 0 | Q42: 0 | R42: 0 | S42: 0 | T42: 0 | U42: 0 | V42: 0 | W42: 0 | X42: 0 | Y42: 0
A43: 2025-11-22 | B43: 0 | C43: 0 | D43: 0 | E43: 0 | F43: 0 | G43: 0 | H43: 0 | I43: 0 | J43: 0 | K43: 0 | L43: 0 | M43: 0 | N43: 0 | O43: 0 | P43: 0 | Q43: 0 | R43: 0 | S43: 0 | T43: 0 | U43: 0 | V43: 0 | W43: 0 | X43: 0 | Y43: 0
A44: 2025-12-22 | B44: 0 | C44: 0 | D44: 0 | E44: 0 | F44: 0 | G44: 0 | H44: 0 | I44: 0 | J44: 0 | K44: 0 | L44: 0 | M44: 0 | N44: 0 | O44: 0 | P44: 0 | Q44: 0 | R44: 0 | S44: 0 | T44: 0 | U44: 0 | V44: 0 | W44: 0 | X44: 0 | Y44: 0
A45: 2026-01-22 | B45: 0 | C45: 0 | D45: 0 | E45: 0 | F45: 0 | G45: 0 | H45: 0 | I45: 0 | J45: 0 | K45: 0 | L45: 0 | M45: 0 | N45: 0 | O45: 0 | P45: 0 | Q45: 0 | R45: 0 | S45: 0 | T45: 0 | U45: 0 | V45: 0 | W45: 0 | X45: 0 | Y45: 0
A46: 2026-02-22 | B46: 0 | C46: 0 | D46: 0 | E46: 0 | F46: 0 | G46: 0 | H46: 0 | I46: 0 | J46: 0 | K46: 0 | L46: 0 | M46: 0 | N46: 0 | O46: 0 | P46: 0 | Q46: 0 | R46: 0 | S46: 0 | T46: 0 | U46: 0 | V46: 0 | W46: 0 | X46: 0 | Y46: 0
A47: 2026-03-22 | B47: 0 | C47: 0 | D47: 0 | E47: 0 | F47: 0 | G47: 0 | H47: 0 | I47: 0 | J47: 0 | K47: 0 | L47: 0 | M47: 0 | N47: 0 | O47: 0 | P47: 0 | Q47: 0 | R47: 0 | S47: 0 | T47: 0 | U47: 0 | V47: 0 | W47: 0 | X47: 0 | Y47: 0
A48: 2026-04-22 | B48: 0 | C48: 0 | D48: 0 | E48: 0 | F48: 0 | G48: 0 | H48: 0 | I48: 0 | J48: 0 | K48: 0 | L48: 0 | M48: 0 | N48: 0 | O48: 0 | P48: 0 | Q48: 0 | R48: 0 | S48: 0 | T48: 0 | U48: 0 | V48: 0 | W48: 0 | X48: 0 | Y48: 0
A49: 2026-05-22 | B49: 0 | C49: 0 | D49: 0 | E49: 0 | F49: 0 | G49: 0 | H49: 0 | I49: 0 | J49: 0 | K49: 0 | L49: 0 | M49: 0 | N49: 0 | O49: 0 | P49: 0 | Q49: 0 | R49: 0 | S49: 0 | T49: 0 | U49: 0 | V49: 0 | W49: 0 | X49: 0 | Y49: 0
A50: 2026-06-22 | B50: 0 | C50: 0 | D50: 0 | E50: 0 | F50: 0 | G50: 0 | H50: 0 | I50: =SUM(F50:H50) -> 0 | J50: 0 | K50: 0 | L50: 0 | M50: =SUM(J50:L50) -> 0 | N50: 0 | O50: 0 | P50: 0 | Q50: =SUM(N50:P50) -> 0 | R50: 0 | S50: 0 | T50: 0 | U50: =SUM(R50:T50) -> 0 | V50: 0 | W50: 0 | X50: 0 | Y50: 0
A52: FT-D1 to FT-D2 Transfer Summary
A53: Total | F53: NW Alberta and NE BC | J53: NE Alberta | N53: Edmonton and Area | R53: SW Alberta | V53: SE Alberta
A54: Month | B54: Approved | C54: Denied | D54: Cancelled | E54: Total | F54: Approved | G54: Denied | H54: Cancelled | I54: Total | J54: Approved | K54: Denied | L54: Cancelled | M54: Total | N54: Approved | O54: Denied | P54: Cancelled | Q54: Total | R54: Approved | S54: Denied | T54: Cancelled | U54: Total | V54: Approved | W54: Denied | X54: Cancelled | Y54: Total
A55: 2025-06-22 | B55: =SUM(F55,J55,N55,R55,V55) -> 241887 | C55: =SUM(G55,K55,O55,S55,W55) -> 0 | D55: 1086 | E55: 242973 | F55: 0 | G55: 0 | H55: 0 | I55: =SUM(F55:H55) -> 0 | J55: 0 | K55: 0 | L55: 0 | M55: =SUM(J55:L55) -> 0 | N55: 0 | O55: 0 | P55: 0 | Q55: =SUM(N55:P55) -> 0 | R55: 0 | S55: 0 | T55: 0 | U55: =SUM(R55:T55) -> 0 | V55: 241887 | W55: 0 | X55: 1086 | Y55: =SUM(V55:X55) -> 242973
A56: 2025-07-22 | B56: =SUM(F56,J56,N56,R56,V56) -> 301663 | C56: =SUM(G56,K56,O56,S56,W56) -> 0 | D56: =SUM(H56,L56,P56,T56,X56) -> 0 | E56: =SUM(I56,M56,Q56,U56,Y56) -> 301663 | F56: 0 | G56: 0 | H56: 0 | I56: 0 | J56: 0 | K56: 0 | L56: 0 | M56: 0 | N56: 0 | O56: 0 | P56: 0 | Q56: 0 | R56: 0 | S56: 0 | T56: 0 | U56: 0 | V56: 301663 | W56: 0 | X56: 0 | Y56: 301663
A57: 2025-08-22 | B57: 0 | C57: 0 | D57: 0 | E57: 0 | F57: 0 | G57: 0 | H57: 0 | I57: 0 | J57: 0 | K57: 0 | L57: 0 | M57: 0 | N57: 0 | O57: 0 | P57: 0 | Q57: 0 | R57: 0 | S57: 0 | T57: 0 | U57: 0 | V57: 0 | W57: 0 | X57: 0 | Y57: 0
A58: 2025-09-22 | B58: 0 | C58: 0 | D58: 0 | E58: 0 | F58: 0 | G58: 0 | H58: 0 | I58: 0 | J58: 0 | K58: 0 | L58: 0 | M58: 0 | N58: 0 | O58: 0 | P58: 0 | Q58: 0 | R58: 0 | S58: 0 | T58: 0 | U58: 0 | V58: 0 | W58: 0 | X58: 0 | Y58: 0
A59: 2025-10-22 | B59: 0 | C59: 0 | D59: 0 | E59: 0 | F59: 0 | G59: 0 | H59: 0 | I59: 0 | J59: 0 | K59: 0 | L59: 0 | M59: 0 | N59: 0 | O59: 0 | P59: 0 | Q59: 0 | R59: 0 | S59: 0 | T59: 0 | U59: 0 | V59: 0 | W59: 0 | X59: 0 | Y59: 0
A60: 2025-11-22 | B60: 0 | C60: 0 | D60: 0 | E60: 0 | F60: 0 | G60: 0 | H60: 0 | I60: 0 | J60: 0 | K60: 0 | L60: 0 | M60: 0 | N60: 0 | O60: 0 | P60: 0 | Q60: 0 | R60: 0 | S60: 0 | T60: 0 | U60: 0 | V60: 0 | W60: 0 | X60: 0 | Y60: 0
A61: 2025-12-22 | B61: 0 | C61: 0 | D61: 0 | E61: 0 | F61: 0 | G61: 0 | H61: 0 | I61: 0 | J61: 0 | K61: 0 | L61: 0 | M61: 0 | N61: 0 | O61: 0 | P61: 0 | Q61: 0 | R61: 0 | S61: 0 | T61: 0 | U61: 0 | V61: 0 | W61: 0 | X61: 0 | Y61: 0
A62: 2026-01-22 | B62: 0 | C62: 0 | D62: 0 | E62: 0 | F62: 0 | G62: 0 | H62: 0 | I62: 0 | J62: 0 | K62: 0 | L62: 0 | M62: 0 | N62: 0 | O62: 0 | P62: 0 | Q62: 0 | R62: 0 | S62: 0 | T62: 0 | U62: 0 | V62: 0 | W62: 0 | X62: 0 | Y62: 0
A63: 2026-02-22 | B63: 40000 | C63: 0 | D63: 0 | E63: 40000 | F63: 40000 | G63: 0 | H63: 0 | I63: 40000 | J63: 0 | K63: 0 | L63: 0 | M63: 0 | N63: 0 | O63: 0 | P63: 0 | Q63: 0 | R63: 0 | S63: 0 | T63: 0 | U63: 0 | V63: 0 | W63: 0 | X63: 0 | Y63: 0
A64: 2026-03-22 | B64: 0 | C64: 0 | D64: 0 | E64: 0 | F64: 0 | G64: 0 | H64: 0 | I64: 0 | J64: 0 | K64: 0 | L64: 0 | M64: 0 | N64: 0 | O64: 0 | P64: 0 | Q64: 0 | R64: 0 | S64: 0 | T64: 0 | U64: 0 | V64: 0 | W64: 0 | X64: 0 | Y64: 0
A65: 2026-04-22 | B65: 0 | C65: 0 | D65: 0 | E65: 0 | F65: 0 | G65: 0 | H65: 0 | I65: 0 | J65: 0 | K65: 0 | L65: 0 | M65: 0 | N65: 0 | O65: 0 | P65: 0 | Q65: 0 | R65: 0 | S65: 0 | T65: 0 | U65: 0 | V65: 0 | W65: 0 | X65: 0 | Y65: 0
A66: 2026-05-22 | B66: 0 | C66: 0 | D66: 0 | E66: 0 | F66: 0 | G66: 0 | H66: 0 | I66: 0 | J66: 0 | K66: 0 | L66: 0 | M66: 0 | N66: 0 | O66: 0 | P66: 0 | Q66: 0 | R66: 0 | S66: 0 | T66: 0 | U66: 0 | V66: 0 | W66: 0 | X66: 0 | Y66: 0
A67: 2026-06-22 | B67: 0 | C67: 0 | D67: 0 | E67: 0 | F67: 0 | G67: 0 | H67: 0 | I67: =SUM(F67:H67) -> 0 | J67: 0 | K67: 0 | L67: 0 | M67: =SUM(J67:L67) -> 0 | N67: 0 | O67: 0 | P67: 0 | Q67: =SUM(N67:P67) -> 0 | R67: 0 | S67: 0 | T67: 0 | U67: =SUM(R67:T67) -> 0 | V67: 0 | W67: 0 | X67: 0 | Y67: =SUM(V67:X67) -> 0
A78: FT-D2 to FT-D1 Transfer Summary
A79: Total | F79: NW Alberta and NE BC | J79: NE Alberta | N79: Edmonton and Area | R79: SW Alberta | V79: SE Alberta
A80: Month | B80: Approved | C80: Denied | D80: Cancelled | E80: Total | F80: Approved | G80: Denied | H80: Cancelled | I80: Total | J80: Approved | K80: Denied | L80: Cancelled | M80: Total | N80: Approved | O80: Denied | P80: Cancelled | Q80: Total | R80: Approved | S80: Denied | T80: Cancelled | U80: Total | V80: Approved | W80: Denied | X80: Cancelled | Y80: Total
A81: 2025-06-22 | B81: =SUM(F81,J81,N81,R81,V81) -> 0 | C81: =SUM(G81,K81,O81,S81,W81) -> 0 | D81: =SUM(H81,L81,P81,T81,X81) -> 0 | E81: =SUM(B81:D81) -> 0 | F81: 0 | G81: 0 | H81: 0 | I81: =SUM(F81:H81) -> 0 | J81: 0 | K81: 0 | L81: 0 | M81: =SUM(J81:L81) -> 0 | N81: 0 | O81: 0 | P81: 0 | Q81: =SUM(N81:P81) -> 0 | R81: 0 | S81: 0 | T81: 0 | U81: =SUM(R81:T81) -> 0 | V81: 0 | W81: 0 | X81: 0 | Y81: =SUM(V81:X81) -> 0
A82: 2025-07-22 | B82: =SUM(F82,J82,N82,R82,V82) -> 0 | C82: =SUM(G82,K82,O82,S82,W82) -> 0 | D82: =SUM(H82,L82,P82,T82,X82) -> 0 | E82: =SUM(B82:D82) -> 0 | F82: 0 | G82: 0 | H82: 0 | I82: 0 | J82: 0 | K82: 0 | L82: 0 | M82: 0 | N82: 0 | O82: 0 | P82: 0 | Q82: 0 | R82: 0 | S82: 0 | T82: 0 | U82: 0 | V82: 0 | W82: 0 | X82: 0 | Y82: =SUM(V82:X82) -> 0
A83: 2025-08-22 | B83: 4000 | C83: 0 | D83: 300 | E83: 4300 | F83: 0 | G83: 0 | H83: 0 | I83: 0 | J83: 0 | K83: 0 | L83: 0 | M83: 0 | N83: 0 | O83: 0 | P83: 0 | Q83: 0 | R83: 4000 | S83: 0 | T83: 300 | U83: 4300 | V83: 0 | W83: 0 | X83: 0 | Y83: 0
A84: 2025-09-22 | B84: 0 | C84: 0 | D84: 0 | E84: 0 | F84: 0 | G84: 0 | H84: 0 | I84: 0 | J84: 0 | K84: 0 | L84: 0 | M84: 0 | N84: 0 | O84: 0 | P84: 0 | Q84: 0 | R84: 0 | S84: 0 | T84: 0 | U84: 0 | V84: 0 | W84: 0 | X84: 0 | Y84: 0
A85: 2025-10-22 | B85: 4500 | C85: 3700 | D85: 200 | E85: 8400 | F85: 0 | G85: 0 | H85: 0 | I85: 0 | J85: 0 | K85: 0 | L85: 0 | M85: 0 | N85: 0 | O85: 0 | P85: 0 | Q85: 0 | R85: 4500 | S85: 3700 | T85: 200 | U85: 8400 | V85: 0 | W85: 0 | X85: 0 | Y85: 0
A86: 2025-11-22 | B86: 7150 | C86: 6000 | D86: 0 | E86: 13150 | F86: 0 | G86: 0 | H86: 0 | I86: 0 | J86: 0 | K86: 0 | L86: 0 | M86: 0 | N86: 0 | O86: 0 | P86: 0 | Q86: 0 | R86: 7150 | S86: 6000 | T86: 0 | U86: 13150 | V86: 0 | W86: 0 | X86: 0 | Y86: 0
A87: 2025-12-22 | B87: 12300 | C87: 0 | D87: 0 | E87: 12300 | F87: 0 | G87: 0 | H87: 0 | I87: 0 | J87: 0 | K87: 0 | L87: 0 | M87: 0 | N87: 0 | O87: 0 | P87: 0 | Q87: 0 | R87: 12300 | S87: 0 | T87: 0 | U87: 12300 | V87: 0 | W87: 0 | X87: 0 | Y87: 0
A88: 2026-01-22 | B88: 28150 | C88: 0 | D88: 0 | E88: 28150 | F88: 0 | G88: 0 | H88: 0 | I88: 0 | J88: 0 | K88: 0 | L88: 0 | M88: 0 | N88: 0 | O88: 0 | P88: 0 | Q88: 0 | R88: 28150 | S88: 0 | T88: 0 | U88: 28150 | V88: 0 | W88: 0 | X88: 0 | Y88: 0
A89: 2026-02-22 | B89: 12575 | C89: 0 | D89: 0 | E89: 12575 | F89: 0 | G89: 0 | H89: 0 | I89: 0 | J89: 0 | K89: 0 | L89: 0 | M89: 0 | N89: 0 | O89: 0 | P89: 0 | Q89: 0 | R89: 12575 | S89: 0 | T89: 0 | U89: 12575 | V89: 0 | W89: 0 | X89: 0 | Y89: 0
A90: 2026-03-22 | B90: 0 | C90: 0 | D90: 0 | E90: 0 | F90: 0 | G90: 0 | H90: 0 | I90: 0 | J90: 0 | K90: 0 | L90: 0 | M90: 0 | N90: 0 | O90: 0 | P90: 0 | Q90: 0 | R90: 0 | S90: 0 | T90: 0 | U90: 0 | V90: 0 | W90: 0 | X90: 0 | Y90: 0
A91: 2026-04-22 | B91: 23975 | C91: 0 | D91: 0 | E91: 23975 | F91: 0 | G91: 0 | H91: 0 | I91: 0 | J91: 0 | K91: 0 | L91: 0 | M91: 0 | N91: 0 | O91: 0 | P91: 0 | Q91: 0 | R91: 23975 | S91: 0 | T91: 0 | U91: 23975 | V91: 0 | W91: 0 | X91: 0 | Y91: 0
A92: 2026-05-22 | B92: 5000 | C92: 101 | D92: 0 | E92: 5101 | F92: 0 | G92: 0 | H92: 0 | I92: 0 | J92: 0 | K92: 0 | L92: 0 | M92: 0 | N92: 0 | O92: 0 | P92: 0 | Q92: 0 | R92: 5000 | S92: 0 | T92: 0 | U92: 5000 | V92: 0 | W92: 101 | X92: 0 | Y92: 101
A93: 2026-06-22 | B93: 3575 | C93: 0 | D93: 0 | E93: =SUM(B93:D93) -> 3575 | F93: 0 | G93: 0 | H93: 0 | I93: =SUM(F93:H93) -> 0 | J93: 0 | K93: 0 | L93: 0 | M93: =SUM(J93:L93) -> 0 | N93: 0 | O93: 0 | P93: 0 | Q93: =SUM(N93:P93) -> 0 | R93: 3575 | S93: 0 | T93: 0 | U93: =SUM(R93:T93) -> 3575 | V93: 0 | W93: 0 | X93: 0 | Y93: 0
A95: FT-D1 to FT-D1 Transfer Summary
A96: Empress to McNeill FT-D1 | H96: McNeill to Empress FT-D1
A97: Month | B97: Approved (Manual) | C97: Approved (ATP) | D97: Denied | E97: Cancelled | F97: Total | H97: Month | I97: Approved (Manual) | J97: Approved (ATP) | K97: Denied | L97: Cancelled | M97: Total
A98: 2025-06-22 | B98: 574303 | C98: 3040706 | D98: 0 | E98: 93777 | F98: =SUM(B98:E98) -> 3708786 | H98: 2025-06-22 | I98: 1446284 | J98: 1814581 | K98: 0 | L98: 0 | M98: =SUM(I98:L98) -> 3260865
A99: 2025-07-22 | B99: 443085 | C99: 1913835 | D99: 0 | E99: 61390 | F99: 2418310 | H99: 2025-07-22 | I99: 1624565 | J99: 1144893 | K99: 0 | L99: 0 | M99: 2769458
A100: 2025-08-22 | B100: 0 | C100: 2724891 | D100: 0 | E100: 0 | F100: 2724891 | H100: 2025-08-22 | I100: 0 | J100: 532410 | K100: 0 | L100: 0 | M100: 532410
A101: 2025-09-22 | B101: 0 | C101: 1393422 | D101: 0 | E101: 0 | F101: 1393422 | H101: 2025-09-22 | I101: 572577 | J101: 74898 | K101: 0 | L101: 0 | M101: 647475
A102: 2025-10-22 | B102: 30502 | C102: 831911 | D102: 0 | E102: 0 | F102: 862413 | H102: 2025-10-22 | I102: 356055 | J102: 241385 | K102: 0 | L102: 0 | M102: 597440
A103: 2025-11-22 | B103: 53071 | C103: 1009530 | D103: 0 | E103: 0 | F103: 1062601 | H103: 2025-11-22 | I103: 606018 | J103: 2438298 | K103: 0 | L103: 0 | M103: 3044316
A104: 2025-12-22 | B104: 0 | C104: 1777821 | D104: 0 | E104: 0 | F104: 1777821 | H104: 2025-12-22 | I104: 0 | J104: 1277263 | K104: 0 | L104: 0 | M104: 1277263
A105: 2026-01-22 | B105: 107793 | C105: 2173045 | D105: 0 | E105: 30000 | F105: 2310838 | H105: 2026-01-22 | I105: 30000 | J105: 2251862 | K105: 0 | L105: 30000 | M105: 2311862
A106: 2026-02-22 | B106: 10253 | C106: 1457735 | D106: 0 | E106: 0 | F106: 1467988 | H106: 2026-02-22 | I106: 226450 | J106: 2413588 | K106: 0 | L106: 0 | M106: 2640038
A107: 2026-03-22 | B107: 0 | C107: 662406 | D107: 0 | E107: 0 | F107: 662406 | H107: 2026-03-22 | I107: 19162 | J107: 2424767 | K107: 0 | L107: 0 | M107: 2443929
A108: 2026-04-22 | B108: 0 | C108: 374533 | D108: 0 | E108: 0 | F108: 374533 | H108: 2026-04-22 | I108: 0 | J108: 1302285 | K108: 0 | L108: 0 | M108: 1302285
A109: 2026-05-22 | B109: 0 | C109: 198339 | D109: 0 | E109: 0 | F109: 198339 | H109: 2026-05-22 | I109: 0 | J109: 1149209 | K109: 0 | L109: 0 | M109: 1149209
A110: 2026-06-22 | B110: 0 | C110: 576013 | D110: 0 | E110: 0 | F110: =SUM(B110:E110) -> 576013 | H110: 2026-06-22 | I110: 0 | J110: 831201 | K110: 0 | L110: 0 | M110: =SUM(I110:L110) -> 831201
A112: Cross Boundary Transfers
A113: Month | B113: Volume (GJ/d) | D113: Information
A114: 2025-06-01 | B114: N/A | D114: N/A
A115: 2025-07-01 | B115: N/A | D115: N/A
A116: 2025-08-01 | B116: N/A | D116: N/A
A117: 2025-09-01 | B117: N/A | D117: N/A
A118: 2025-10-01 | B118: N/A | D118: N/A
A119: 2025-11-01 | B119: N/A | D119: N/A
A120: 2025-12-01 | B120: N/A | D120: N/A
A121: 2026-01-22 | B121: N/A | D121: N/A
A122: 2026-02-22 | B122: 3500 | D122: Requested out and back FT-D2 transfers from SW AB area to NW AB and NE BC area was approved
A123: 2026-03-22 | B123: N/A | D123: N/A
A124: 2026-04-22 | B124: N/A | D124: N/A
A125: 2026-05-22 | B125: N/A | D125: N/A
A126: 2026-06-22 | B126: N/A | D126: N/A
A128: Notes:
A129: 1. Values represent the total volume (GJ/d) of transfer requests processed in the specified month, regardless of effective date
A130: 2. Includes all "out and back" and "one-way" transfers
A131: 3. Out and back transfer requests are tallied as a single transaction
A132: 4. Transfers to storage are not included in totals
A133: 5. Transfers that cross a Delivery Design Area boundary are tallied in the area where the "To" location is situated
A134: 6. Cancelled transfer requests are initiated by the requester (customer, marketer etc.)
A135: 7. ATP is the acronym for Automated Transfer Process, requests that meet certain criteria may be approved automatically
A136: 8. Delivery Design Area boundaries are illustrated in the Design Methodology document on Customer Express (see NGTL/Regulatory/Facilities)
A137: http://www.tccustomerexpress.com/docs/ab_regulatory_facilities/Facilities%20Design%20Methodology%20Document%20-%20Revision%20May%2031,%202018_Oct%204.pdf

Sheet Transfers to Storage
A1: Transfers to Storage - Frequency
B2: FT-R | G2: FT-D1 | L2: FT-D2
A3: Month | B3: Approved (Manual) | C3: Approved (ATP) | D3: Denied | E3: Cancelled | F3: Total | G3: Approved (Manual) | H3: Approved (ATP) | I3: Denied | J3: Cancelled | K3: Total | L3: Approved (Manual) | M3: Approved (ATP) | N3: Denied | O3: Cancelled | P3: Total
A4: 2025-06-22 | B4: 0 | C4: 0 | D4: 0 | E4: 0 | F4: =SUM(B4:E4) -> 0 | G4: 0 | H4: 74 | I4: 0 | J4: 0 | K4: =SUM(G4:J4) -> 74 | L4: 32 | M4: 0 | N4: 0 | O4: 4 | P4: =SUM(L4:O4) -> 36
A5: 2025-07-22 | B5: 0 | C5: 0 | D5: 0 | E5: 0 | F5: 0 | G5: 1 | H5: 64 | I5: 0 | J5: 0 | K5: 65 | L5: 19 | M5: 0 | N5: 0 | O5: 0 | P5: 19
A6: 2025-08-22 | B6: 0 | C6: 0 | D6: 0 | E6: 0 | F6: 0 | G6: 0 | H6: 0 | I6: 0 | J6: 0 | K6: 0 | L6: 1 | M6: 0 | N6: 0 | O6: 0 | P6: 1
A7: 2025-09-22 | B7: 0 | C7: 0 | D7: 0 | E7: 0 | F7: 0 | G7: 0 | H7: 0 | I7: 0 | J7: 0 | K7: 0 | L7: 1 | M7: 0 | N7: 0 | O7: 0 | P7: 1
A8: 2025-10-22 | B8: 0 | C8: 0 | D8: 0 | E8: 0 | F8: 0 | G8: 0 | H8: 0 | I8: 0 | J8: 0 | K8: 0 | L8: 1 | M8: 0 | N8: 0 | O8: 0 | P8: 1
A9: 2025-11-22 | B9: 0 | C9: 0 | D9: 0 | E9: 0 | F9: 0 | G9: 0 | H9: 0 | I9: 0 | J9: 0 | K9: 0 | L9: 7 | M9: 0 | N9: 0 | O9: 0 | P9: 7
A10: 2025-12-22 | B10: 0 | C10: 33 | D10: 0 | E10: 0 | F10: 33 | G10: 0 | H10: 0 | I10: 0 | J10: 0 | K10: 0 | L10: 1 | M10: 0 | N10: 0 | O10: 0 | P10: 1
A11: 2026-01-22 | B11: 0 | C11: 4 | D11: 0 | E11: 0 | F11: 4 | G11: 0 | H11: 0 | I11: 0 | J11: 0 | K11: 0 | L11: 3 | M11: 0 | N11: 0 | O11: 0 | P11: 3
A12: 2026-02-22 | B12: 0 | C12: 0 | D12: 0 | E12: 0 | F12: 0 | G12: 0 | H12: 0 | I12: 0 | J12: 0 | K12: 0 | L12: 5 | M12: 0 | N12: 0 | O12: 0 | P12: 5
A13: 2026-03-22 | B13: 0 | C13: 0 | D13: 0 | E13: 0 | F13: 0 | G13: 0 | H13: 0 | I13: 0 | J13: 0 | K13: 0 | L13: 2 | M13: 0 | N13: 0 | O13: 0 | P13: 2
A14: 2026-04-22 | B14: 0 | C14: 0 | D14: 0 | E14: 0 | F14: 0 | G14: 0 | H14: 0 | I14: 0 | J14: 0 | K14: 0 | L14: 3 | M14: 0 | N14: 0 | O14: 0 | P14: 3
A15: 2026-05-22 | B15: 0 | C15: 0 | D15: 0 | E15: 0 | F15: 0 | G15: 0 | H15: 0 | I15: 0 | J15: 0 | K15: 0 | L15: 3 | M15: 0 | N15: 0 | O15: 0 | P15: 3
A16: 2026-06-22 | B16: 0 | C16: 0 | D16: 0 | E16: 0 | F16: =SUM(B16:E16) -> 0 | G16: 0 | H16: 0 | I16: 0 | J16: 0 | K16: =SUM(G16:J16) -> 0 | L16: 3 | M16: 0 | N16: 0 | O16: 0 | P16: =SUM(L16:O16) -> 3
A18: Transfers to Storage - Volume
B19: FT-R (103m3/d) | G19: FT-D1 (GJ/d) | L19: FT-D2 (GJ/d)
A20: Month | B20: Approved (Manual) | C20: Approved (ATP) | D20: Denied | E20: Cancelled | F20: Total | G20: Approved (Manual) | H20: Approved (ATP) | I20: Denied | J20: Cancelled | K20: Total | L20: Approved (Manual) | M20: Approved (ATP) | N20: Denied | O20: Cancelled | P20: Total
A21: 2025-05-22 | B21: 0 | C21: 0 | D21: 0 | E21: 0 | F21: =SUM(B21:E21) -> 0 | G21: 0 | H21: 1339655 | I21: 0 | J21: 0 | K21: =SUM(G21:J21) -> 1339655 | L21: 163750 | M21: 0 | N21: 0 | O21: 39020 | P21: =SUM(L21:O21) -> 202770
A22: 2025-06-22 | B22: 0 | C22: 0 | D22: 0 | E22: 0 | F22: 0 | G22: 144000 | H22: 1175874 | I22: 0 | J22: 0 | K22: 1319874 | L22: 104400 | M22: 0 | N22: 0 | O22: 0 | P22: 104400
A23: 2025-07-22 | B23: 0 | C23: 0 | D23: 0 | E23: 0 | F23: 0 | G23: 0 | H23: 0 | I23: 0 | J23: 0 | K23: 0 | L23: 1000 | M23: 0 | N23: 0 | O23: 0 | P23: 1000
A24: 2025-08-22 | B24: 0 | C24: 0 | D24: 0 | E24: 0 | F24: 0 | G24: 0 | H24: 0 | I24: 0 | J24: 0 | K24: 0 | L24: 1000 | M24: 0 | N24: 0 | O24: 0 | P24: 1000
A25: 2025-09-22 | B25: 0 | C25: 0 | D25: 0 | E25: 0 | F25: 0 | G25: 0 | H25: 0 | I25: 0 | J25: 0 | K25: 0 | L25: 8125 | M25: 0 | N25: 0 | O25: 0 | P25: 8125
A26: 2025-10-22 | B26: 0 | C26: 0 | D26: 0 | E26: 0 | F26: 0 | G26: 0 | H26: 0 | I26: 0 | J26: 0 | K26: 0 | L26: 33000 | M26: 0 | N26: 0 | O26: 0 | P26: 33000
A27: 2025-11-22 | B27: 0 | C27: 6068.3 | D27: 0 | E27: 0 | F27: 6068.3 | G27: 0 | H27: 0 | I27: 0 | J27: 0 | K27: 0 | L27: 4375 | M27: 0 | N27: 0 | O27: 0 | P27: 4375
A28: 2025-12-22 | B28: 0 | C28: 1000 | D28: 0 | E28: 0 | F28: 1000 | G28: 0 | H28: 0 | I28: 0 | J28: 0 | K28: 0 | L28: 25000 | M28: 0 | N28: 0 | O28: 0 | P28: 25000
A29: 2026-01-22 | B29: 0 | C29: 0 | D29: 0 | E29: 0 | F29: 0 | G29: 0 | H29: 0 | I29: 0 | J29: 0 | K29: 0 | L29: 51000 | M29: 0 | N29: 0 | O29: 0 | P29: 51000
A30: 2026-02-22 | B30: 0 | C30: 0 | D30: 0 | E30: 0 | F30: 0 | G30: 0 | H30: 0 | I30: 0 | J30: 0 | K30: 0 | L30: 6000 | M30: 0 | N30: 0 | O30: 0 | P30: 6000
A31: 2026-03-22 | B31: 0 | C31: 0 | D31: 0 | E31: 0 | F31: 0 | G31: 0 | H31: 0 | I31: 0 | J31: 0 | K31: 0 | L31: 29333 | M31: 0 | N31: 0 | O31: 0 | P31: 29333
A32: 2026-04-22 | B32: 0 | C32: 0 | D32: 0 | E32: 0 | F32: 0 | G32: 0 | H32: 0 | I32: 0 | J32: 0 | K32: 0 | L32: 21000 | M32: 0 | N32: 0 | O32: 0 | P32: =SUM(L32:O32) -> 21000
A33: 2026-05-22 | B33: 0 | C33: 0 | D33: 0 | E33: 0 | F33: =SUM(B33:E33) -> 0 | G33: 0 | H33: 0 | I33: 0 | J33: 0 | K33: =SUM(G33:J33) -> 0 | L33: 8000 | M33: 0 | N33: 0 | O33: 0 | P33: =SUM(L33:O33) -> 8000
A36: Cross Boundary Transfers
A37: Month | B37: Frequency | C37: Volume (e3m3/d) | D37: Information
A38: 2025-05-01 | B38: N/A | C38: N/A | D38: N/A
A39: 2025-06-01 | B39: N/A | C39: N/A | D39: N/A
A40: 2025-07-01 | B40: N/A | C40: N/A | D40: N/A
A41: 2025-08-01 | B41: N/A | C41: N/A | D41: N/A
A42: 2025-09-01 | B42: N/A | C42: N/A | D42: N/A
A43: 2025-10-01 | B43: N/A | C43: N/A | D43: N/A
A44: 2025-11-01 | B44: N/A | C44: N/A | D44: N/A
A45: 2025-12-01 | B45: N/A | C45: N/A | D45: N/A
A46: 2026-01-22 | B46: N/A | C46: N/A | D46: N/A
A47: 2026-02-22 | B47: N/A | C47: N/A | D47: N/A
A48: 2026-03-22 | B48: N/A | C48: N/A | D48: N/A
A49: 2026-04-22 | B49: N/A | C49: N/A | D49: N/A
A50: 2026-05-22 | B50: N/A | C50: N/A | D50: N/A
A52: Notes:
A53: 1. Values represent the total volume (GJ/d) of transfer requests processed in the specified month, regardless of effective date
A54: 2. Includes all "out and back" and "one-way" transfers
A55: 3. Out and back transfer requests are tallied as a single transaction
A56: 4. Transfers that cross a Delivery Design Area boundary are tallied in the area where the "To" location is situated
A57: 5. Cancelled transfer requests are initiated by the requester (customer, marketer etc.)
A58: 6. ATP is the acronym for Automated Transfer Process, requests that meet certain criteria may be approved automatically
A59: 7. Delivery Design Area boundaries are illustrated in the Design Methodology document on Customer Express (see NGTL/Regulatory/Facilities)
A60: http://www.tccustomerexpress.com/docs/ab_regulatory_facilities/Facilities%20Design%20Methodology%20Document%20-%20Revision%20May%2031,%202018_Oct%204.pdf
